Cogmind - Beta 16.1 @@@ ROGUE MODE // 2026.02.21 @ 10:44:48 Player: spider Result: Self-destructed Performance ------------- Evolutions (9) 4500 Regions Visited (27) 5400 Robots Destroyed (153) 765 Value Destroyed (10681) 10681 Prototype IDs (374) 7480 Alien Tech Used (7) 1400 Bonus (59449) 59449 TOTAL SCORE: 89675 Bonus ------- Triggered High Security 500 High Alert Combat Kills 5666 Follower Combat Kills 189 Hunted by Unchained 500 Registered with UFD 300 Met Optimus in HQ 500 Met Data Miner 300 Met Zhirov 300 Met Warlord at Base 500 MAIN.C Attacked Warlord 500 Used Core Reset Matrix 3000 Hacked Protovariant 500 Destroyed Superfortress 15000 Met Optimus at Protoforge 1000 Executed Drillbomb Mission 10000 Destroyed MAIN.C Guards 500 Met MAIN.C 5000 Destroyed MAIN.C Shell 5000 Destroyed MAIN.C 10000 Destroyed A8 300 Friendly Fire -106 Cogmind --------- Core Integrity 307/1600 Matter 285/300 Energy 268/500 System Corruption 1% Temperature Warm (140) Movement Immobile (Siege) Location -1/Access_0 Parts ------- > --- POWER (3) -------- Zero-point Reactor Zero-point Reactor Concept Zero-point Core > --- PROPULSION (7) --- Armored Heavy Treads Biometal Heavy Treads Experimental Biometal Heavy Treads Experimental Biometal Medium Treads > --- UTILITY (11) ----- Advanced Power Amplifier Concept Thermoelectric Network Concept Antigrav Storage Unit Experimental Targeting Computer Concept Networked Targeting System Concept Core Analysis Suite Experimental Weapon Cycler Layered Heavy Armor Plating Improved Force Field Concept Impact Drone Bay (3/6) > --- WEAPON (4) ------- Improved Potential Cannon > --- INVENTORY (25) --- Improved Quantum Reactor Improved Quantum Reactor Improved Quantum Reactor Armored Heavy Treads Armored Heavy Treads Energy Well (290) Concept Chromion Battery (0) Concept NT7 Matterbank (750) Concept NT7 Matterbank (750) Experimental Core Analyzer Experimental Kinecellerator Advanced Phase Shifter Advanced Phase Shifter Layered Heavy Armor Plating Improved Force Field Compact HERF Cannon Heavy Hardcell Cannon Peak State ------------ > --- POWER ------------ Concept Zero-point Core Concept Zero-point Core Concept Zero-point Core > --- PROPULSION ------- Experimental Antigrav System Concept Combat Aerolev Unit Concept Combat Aerolev Unit Concept Combat Aerolev Unit Concept Gyrokinetic System Concept Gyrokinetic System Concept Gyrokinetic System > --- UTILITY ---------- Concept Phasing Heat Sink Concept Thermoelectric Network Concept Antigrav Storage Unit Concept Networked Targeting System Concept Networked Targeting System Concept Core Analysis Suite Concept Phase Shift Module Concept Cloak Mesh Concept RG22 Armor Concept RG22 Armor Experimental Force Field > --- WEAPON ----------- Concept Plasma Driver Concept Helical Railcannon Concept Heavy Railcannon > --- INVENTORY -------- Light Quantum Reactor Experimental Antigrav System Gravjet Array Concept Chromion Battery Concept NT7 Matterbank Concept NT7 Matterbank Experimental Kinecellerator Experimental Kinecellerator Advanced Phase Shifter Concept Antimissile System Concept Matter Streamer Concept Impact Drone Bay Transdimensional Reconstructor Concept Rapid Grenade Launcher Experimental Neutron Missile Launcher [Rating: 322] Favorites ----------- Power Concept Zero-point Core Engine Deuterium Engine Power Core Concept Zero-point Core Reactor Zero-point Reactor Propulsion Enhanced Biometal Leg Treads Light Treads Leg Enhanced Biometal Leg Hover Unit Concept Gyrokinetic System Flight Unit Cooled Nuclear Pulse Thruster Utility Concept RG22 Armor Device Concept Networked Targeting System Storage Concept Antigrav Storage Unit Processor Concept Core Analysis Suite Hackware Advanced Hacking Suite Protection Concept RG22 Armor Weapon Minigun Energy Gun Concept Lightning Penetrator Energy Cannon Improved Potential Cannon Ballistic Gun Minigun Ballistic Cannon Concept Helical Railcannon Launcher Concept Rapid Grenade Launcher Special Weapon CPS Tube Impact Weapon Maul Slashing Weapon Dual-blade Saw Piercing Weapon Experimental Jetlance Special Melee Weapon Advanced Datajack Build | -11 -10 -10 -8 -8 -6 -6 -6 -5 -5 -5 -5 -5 -4 -4 -4 -4 -4 -4 -3 -3 -3 -2 -2 -2 -1 -1 -1 ------- Run | Yrd Mat Sub Rec Scr Fac Low Dat Pro Fac Upp Upp Zhi Pro Fac Was Fac Upp War Pro Res Tes Res Qua Frg Acc Com Ac0 Slots Evolved 18 | . . . . . 8 . . . 2 . . . . 2 . . . . . 2 . 2 . . 2 . . Power 2 | . . . . . 1 . . . . . . . . . . . . . . . . . . . 1 . . Propulsion 5 | . . . . . 3 . . . 1 . . . . . . . . . . . . 1 . . . . . Utility 9 | . . . . . 4 . . . 1 . . . . 2 . . . . . 2 . . . . . . . Weapon 2 | . . . . . . . . . . . . . . . . . . . . . . 1 . . 1 . . Parts Attached 260 | 6 4 6 2 6 16 . . 6 22 2 4 8 3 7 4 8 . 11 1 2 1 4 5 85 3 43 1 Power 28 | 1 1 . . 2 1 . . 2 1 . . 2 . 1 . . . 3 1 1 . . . 7 1 4 . Engine 4 | 1 1 . . 1 . . . . . . . . . . . . . 1 . . . . . . . . . Core 15 | . . . . 1 1 . . 2 1 . . 1 . 1 . . . . 1 . . . . 5 1 1 . Reactor 9 | . . . . . . . . . . . . 1 . . . . . 2 . 1 . . . 2 . 3 . Propulsion 63 | 2 . 2 . 1 5 . . 1 10 . 2 3 . . . 2 . 1 . . . 2 2 15 1 14 . Treads 18 | 2 . 2 . 1 4 . . 1 4 . . . . . . . . . . . . . . . . 4 . Leg 11 | . . . . . 1 . . . . . . . . . . . . . . . . . . . . 10 . Wheel . | . . . . . . . . . . . . . . . . . . . . . . . . . . . . Hover 13 | . . . . . . . . . . . . . . . . . . . . . . . . 12 1 . . Flight 21 | . . . . . . . . . 6 . 2 3 . . . 2 . 1 . . . 2 2 3 . . . Utility 119 | 1 3 . . 2 6 . . 2 6 1 1 3 2 5 3 5 . 3 . 1 1 1 2 49 1 20 1 Device 59 | . 1 . . . 2 . . . 1 . 1 . 1 3 1 1 . 2 . 1 . . 1 29 1 14 . Storage 16 | 1 2 . . 2 . . . . 1 . . 1 . . . . . . . . . . 1 6 . 2 . Processor 12 | . . . . . 1 . . . 1 1 . . . 1 . . . . . . 1 . . 6 . 1 . Hackware 7 | . . . . . . . . . 2 . . 1 1 . . 3 . . . . . . . . . . . Protection 25 | . . . . . 3 . . 2 1 . . 1 . 1 2 1 . 1 . . . 1 . 8 . 3 1 Artifact . | . . . . . . . . . . . . . . . . . . . . . . . . . . . . Weapon 50 | 2 . 4 2 1 4 . . 1 5 1 1 . 1 1 1 1 . 4 . . . 1 1 14 . 5 . Energy Gun 6 | . . 2 . . . . . . . . . . . . . . . . . . . . . 2 . 2 . Energy Cannon 9 | . . . . . 1 . . . 2 1 . . . . . . . 1 . . . 1 . 2 . 1 . Ballistic Gun 9 | 2 . 2 2 1 1 . . 1 . . . . . . . . . . . . . . . . . . . Ballistic Cannon 5 | . . . . . . . . . 1 . . . . . . . . . . . . . . 3 . 1 . Launcher 5 | . . . . . 1 . . . 1 . . . . . 1 . . 1 . . . . . 1 . . . Special Weapon 9 | . . . . . . . . . . . 1 . 1 . . 1 . 2 . . . . . 4 . . . Impact Weapon 1 | . . . . . 1 . . . . . . . . . . . . . . . . . . . . . . Slashing Weapon 3 | . . . . . . . . . 1 . . . . . . . . . . . . . 1 . . 1 . Piercing Weapon 2 | . . . . . . . . . . . . . . . . . . . . . . . . 2 . . . Special Melee Weapon 1 | . . . . . . . . . . . . . . 1 . . . . . . . . . . . . . Unidentified Prototypes 43 | . . . . . . . . . 1 . . 5 . . 1 . . 7 1 . . . 4 24 . . . Corrupted Parts 8 | . . . . . . . . . . . . . . . . 2 . . 1 . . . . . . 5 . System Corruption 42 | . . . . . . . . . . . . . . . . 7 . . 2 . . . . . . 33 . Parts Lost 44 | . 1 4 . . 2 . . . 6 . 2 . . 4 . . . . . . 1 3 . 4 6 8 3 Power 8 | . 1 1 . . . . . . 1 . 1 . . 2 . . . . . . 1 . . . . 1 . Propulsion 10 | . . 2 . . 2 . . . 2 . . . . . . . . . . . . 1 . . 1 2 . Utility 16 | . . . . . . . . . 2 . . . . 2 . . . . . . . 1 . 3 2 4 2 Weapon 10 | . . 1 . . . . . . 1 . 1 . . . . . . . . . . 1 . 1 3 1 1 Highest Loss Streak 4 | . 1 2 . . 1 . . . 3 . 2 . . 4 . . . . . . 1 2 . 2 2 3 3 To Critical Strikes . | . . . . . . . . . . . . . . . . . . . . . . . . . . . . Average Backups 17 | 3 9 10 13 18 19 20 20 19 17 9 10 10 9 9 9 9 10 9 10 9 10 8 9 19 22 19 19 Power 1 | . 1 . . . 1 1 1 1 . . . 1 1 . . 1 1 1 1 1 1 . . 1 1 1 3 Propulsion 2 | 1 3 4 2 1 2 4 4 4 3 . . 1 1 1 1 1 2 1 2 2 2 1 . 4 3 2 2 Utility 8 | . 2 3 3 8 7 8 8 8 6 4 4 3 3 4 5 4 4 4 4 3 4 4 2 8 11 12 12 Weapon 3 | . 2 3 6 5 6 5 5 4 4 1 1 1 1 1 1 1 3 3 3 3 3 3 3 4 4 2 2 Tool/Special . | . . . . . . . . . . . . . . . . . . . . . . . . . . . . Unused Backups 70 | . . . 5 8 5 . . . 3 . 1 1 1 . . 1 . 2 . . . . 4 8 . 19 12 Power 6 | . . . . 2 . . . . . . . . . . . . . . . . . . . . . 2 2 Propulsion 17 | . . . 2 . . . . . 1 . . . . . . 1 . . . . . . . 1 . 10 2 Utility 33 | . . . 2 5 . . . . 2 . 1 1 . . . . . . . . . . 2 7 . 7 6 Weapon 12 | . . . 1 1 5 . . . . . . . . . . . . 2 . . . . 1 . . . 2 Tool/Special 2 | . . . . . . . . . . . . . 1 . . . . . . . . . 1 . . . . Average Slot Usage (%) 89 | . 90 96 85 90 83 100 90 93 82 81 86 91 89 97 91 93 94 99 100 93 99 92 90 92 91 84 75 Engine 1 | . 5 10 . 5 6 6 6 2 . 5 1 . . . . . . 4 5 1 . . . . . . . Core 4 | . . . . . 2 6 6 10 8 5 5 7 11 9 5 5 5 4 . . . 3 4 7 8 5 4 Reactor 2 | . . . . . . . . . . . . . . . . . . . 5 7 9 4 4 . . 5 8 Treads 7 | . 28 28 28 28 27 33 33 28 20 . . . . . . . . . . . . . . . . 1 16 Leg 6 | . . . . . 2 . . . . . . . . . . . . . . . . . . . . 19 . Hover 7 | . . . . . . . . . . . . . . . . . . . . . . . . 20 27 5 . Flight 6 | . . . . . . . . . 5 23 30 35 35 31 31 31 31 30 31 28 28 30 29 6 . . . Device 18 | . 13 14 14 14 10 13 13 13 8 5 7 11 5 14 10 9 10 10 10 17 19 17 19 21 27 24 20 Storage 6 | . 14 14 14 14 6 6 6 6 5 5 5 5 5 5 5 5 5 5 5 4 4 4 4 4 4 4 4 Processor 4 | . . . . . 3 6 6 6 6 16 14 9 5 5 5 5 5 5 5 4 8 8 4 6 4 4 8 Hackware 3 | . . . . . . . . . 1 11 11 12 22 21 15 15 15 15 15 14 14 13 13 5 . . . Protection 6 | . . . . . 9 13 13 13 12 . . . . . 7 10 10 9 9 4 4 4 4 8 8 8 7 Energy Gun 1 | . . 14 1 . . . . . . . . . . . . . . . . . . . . 2 2 1 . Energy Cannon 1 | . . . . . . . . . 2 . . 1 . 3 5 5 . 4 5 4 4 4 . . 2 2 4 Ballistic Gun 5 | . 28 13 26 28 8 13 3 11 5 . . . . . . . . . . . . . . . . . . Ballistic Cannon 1 | . . . . . . . . . . . . . . . . . . . . . . . . 2 . 2 3 Peak Build Rating 322 | 6 8 8 13 20 47 46 46 62 83 63 64 82 83 103 96 96 94 113 115 124 128 145 166 304 310 322 261 Average Rating 173 | 5 6 7 11 15 34 46 40 55 69 57 60 74 78 97 88 90 94 103 112 120 127 137 154 247 293 261 259 On Entrance 91 | . 6 8 7 13 20 46 46 39 62 53 58 63 82 78 84 89 94 94 113 115 124 121 137 159 301 277 259 Avg Prop Armor Cover (%) 4 | . . . . . 3 . . . . . . . . . . 2 . . . . 9 . . . . 5 3 Naked Turns . | . . . . . . . . . . . . . . . . . . . . . . . . . . . . Heaviest Build 168 | 10 28 30 27 56 78 74 74 78 89 22 32 37 35 41 39 38 31 52 51 46 46 53 52 122 119 168 166 Greatest Support 260 | 40 40 40 40 43 105 105 105 132 178 22 30 34 33 42 42 44 43 46 46 46 64 62 64 123 116 260 220 Greatest Overweight (x) 3 | . . . . 1 1 . . . . . 1 1 1 1 . . . 1 1 . 3 . 1 1 1 3 . Average Overweight (x) . | . . . . . . . . . . . . . . . . . . . . . . . . . . . . Largest Inventory Capacity 25 | 8 15 15 15 20 20 20 20 20 20 10 10 10 10 10 10 10 10 10 10 10 10 10 10 25 25 25 25 Average Capacity 20 | 7 11 15 15 19 20 20 20 20 17 10 10 10 10 10 10 10 10 10 10 10 10 10 10 21 25 25 25 Most Carried 25 | 6 12 11 15 20 20 20 20 20 20 10 10 10 10 10 10 10 10 10 10 10 10 10 10 25 25 25 25 Average Carried 18 | 3 9 10 13 18 19 20 20 19 16 9 9 9 9 9 9 9 10 9 9 9 10 8 9 20 24 21 24 Final Capacity 25 | 8 15 15 15 20 20 20 20 20 10 10 10 10 10 10 10 10 10 10 10 10 10 10 10 25 25 25 25 Final Carried 25 | 6 11 9 15 20 20 20 20 20 10 10 10 10 10 9 10 10 10 10 10 10 10 8 9 25 22 25 21 Class Distribution -------------------- 15% | Scavenger-Mutant 13% | Hacker-Sprinter 13% | Gunner 11% | Scavenger-Tank 11% | Commander-Mutant 11% | Mutant 6% | Derelict-Mutant 5% | Tank 5% | Hacker-Scout Dominant Class ---------------- Mutant | -10/Materials Mutant | -10/Subcaves Mutant | -8/Recycling Commander-Mutant | -8/Scraptown Mutant | -6/Factory Derelict-Mutant | -6/Lower Caves Derelict-Mutant | -6/Data Miner Derelict-Mutant | -5/Proximity Caves Derelict-Mutant | -5/Factory Hacker-Sprinter | -5/Upper Caves Hacker-Sprinter | -5/Upper Caves Hacker-Mutant | -5/Zhirov Hacker-Sprinter | -4/Proximity Caves Hacker-Sprinter | -4/Factory Hacker-Sprinter | -4/Waste Hacker-Sprinter | -4/Factory Hacker-Sprinter | -4/Upper Caves Hacker-Sprinter | -4/Warlord Hacker-Sprinter | -3/Proximity Caves Hacker-Sprinter | -3/Research Hacker-Sprinter | -3/Testing Hacker-Sprinter | -2/Research Hacker-Sprinter | -2/Quarantine Gunner | -2/Protoforge Gunner | -1/Access Scavenger-Tank | -1/Command Tank | -1/Access_0 Resources | -11 -10 -10 -8 -8 -6 -6 -6 -5 -5 -5 -5 -5 -4 -4 -4 -4 -4 -4 -3 -3 -3 -2 -2 -2 -1 -1 -1 ----------- Run | Yrd Mat Sub Rec Scr Fac Low Dat Pro Fac Upp Upp Zhi Pro Fac Was Fac Upp War Pro Res Tes Res Qua Frg Acc Com Ac0 Matter Collected 13537 | 272 93 95 66 40 265 . . 162 60 142 320 208 96 63 123 . . 412 10 . . 7 40 6460 128 4337 138 Remotely 373 | . . . . . . . . . . . . . . . . . . . . . . . . 373 . . . Salvage Created 8068 | 114 295 137 309 . 464 . . . 289 42 179 208 . . . . . . . . . . . 2563 858 2350 260 Parts 274 | 9 20 9 9 . 24 . . . 7 1 15 4 . . . . . . . . . . . 95 25 50 6 Haulers Intercepted 3 | . 2 . . . . . . . 1 . . . . . . . . . . . . . . . . . . Recyclers Shooed 1 | . . . . . 1 . . . . . . . . . . . . . . . . . . . . . . Parts Field Recycled . | . . . . . . . . . . . . . . . . . . . . . . . . . . . . Retrieved Matter . | . . . . . . . . . . . . . . . . . . . . . . . . . . . . Parts Self-Destructed 20 | . . 7 . . . . . . . 2 9 2 . . . . . . . . . . . . . . . Prevented 4 | . . . . . . . . . . 1 . . . . . . 3 . . . . . . . . . . Parts Restored 12 | . . . . . . . . . . . . . . . . . . . . . . . . 12 . . . Faulty 12 | . . . . . . . . . . . . . . . . . . . . . . . . 12 . . . Kills | -11 -10 -10 -8 -8 -6 -6 -6 -5 -5 -5 -5 -5 -4 -4 -4 -4 -4 -4 -3 -3 -3 -2 -2 -2 -1 -1 -1 ------- Run | Yrd Mat Sub Rec Scr Fac Low Dat Pro Fac Upp Upp Zhi Pro Fac Was Fac Upp War Pro Res Tes Res Qua Frg Acc Com Ac0 Combat Hostiles Destroyed 131 | . 4 4 2 . 9 . . . 3 . 8 . . . . . . . . . . . . 56 25 13 7 Melee 2 | . . . . . . . . . . . . . . . . . . . . . . . . 2 . . . Guns 16 | . 4 4 2 . 5 . . . . . . . . . . . . . . . . . . 1 . . . Cannons 19 | . . . . . . . . . 2 . . . . . . . . . . . . . . 5 1 5 6 AOE 78 | . . . . . 4 . . . . . 8 . . . . . . . . . . . . 36 24 5 1 Classes Destroyed 25 | 2 3 3 2 . 2 . . . . 1 . . . . . . . . . . . . . 11 1 . . Worker 4 | . 1 . . . 1 . . . . . . . . . . . . . . . . . . . 1 1 . Tunneler 2 | 2 . . . . . . . . . . . . . . . . . . . . . . . . . . . Hauler 3 | . 2 . . . . . . . 1 . . . . . . . . . . . . . . . . . . Recycler 7 | 1 . . 3 . 2 . . . . . . . . . . . . . . . . . . . . 1 . Mechanic 1 | . . . . . . . . . . . . . . . . . . . . . . . . 1 . . . Drone 10 | . . . . . . . . . . . . . . . . . . . . . . . . 6 2 2 . Turret 2 | . . 2 . . . . . . . . . . . . . . . . . . . . . . . . . Watcher 1 | . . . . . . . . . . . . . . . . . . . . . . . . . 1 . . Swarmer 32 | . . 3 . . 7 . . . . . 8 . . . . . . . . . . . . 4 6 4 . Grunt 19 | . 4 . . . . . . . . . . . . . . . . . . . . . . 5 10 . . Brawler 2 | . . . . . . . . . . . . . . . . . . . . . . . . 1 1 . . Duelist 2 | . . . 1 . . . . . . . . . . . . . . . . . . . . 1 . . . Protector 2 | . . . . . . . . . . . . . . . . . . . . . . . . 1 1 . . Researcher 2 | . . . . . . . . . . . . . . . . . . . . . . . . 2 . . . Sentry 12 | . . . . . 1 . . . 1 . . . . . . . . . . . . . . 10 . . . Demolisher 1 | . . . 1 . . . . . . . . . . . . . . . . . . . . . . . . Specialist 4 | . . . . . . . . . . . . . . . . . . . . . . . . 3 1 . . Hunter 7 | . . . . . . . . . . . . . . . . . . . . . . . . 4 1 2 . Programmer 7 | . . . . . 1 . . . 2 . . . . . . . . . . . . . . 1 3 . . M Guard 2 | . . . . . . . . . . . . . . . . . . . . . . . . . . 2 . Enhanced Grunt 6 | . . . . . . . . . . . . . . . . . . . . . . . . . . . 6 Hotshot 4 | . . . . . . . . . . . . . . . . . . . . . . . . 4 . . . Decapitator 7 | . . . . . . . . . . . . . . . . . . . . . . . . 7 . . . Immortal 3 | . . . . . . . . . . . . . . . . . . . . . . . . 3 . . . Combat Programmer 2 | . . . . . . . . . . . . . . . . . . . . . . . . . . 2 . Striker 4 | . . . . . . . . . . . . . . . . . . . . . . . . 2 . 2 . Executioner 2 | . . . . . . . . . . . . . . . . . . . . . . . . 2 . . . V-Series 2 | . . . . . . . . . . . . . . . . . . . . . . . . 2 . . . Subdweller 1 | . . 1 . . . . . . . . . . . . . . . . . . . . . . . . . Samaritan 4 | . . . . . . . . . . 1 3 . . . . . . . . . . . . . . . . Best Kill Streak 15 | 3 4 3 1 . 5 . . . 1 . 5 . . . . . . . . . . . . 5 15 8 3 Combat Bots Only 15 | . 2 3 1 . 5 . . . 1 . 5 . . . . . . . . . . . . 5 15 6 3 Max Kills in Single Turn 6 | 1 1 1 1 . 2 . . . 1 1 3 . . . . . . . . . . . . 3 6 3 1 Gunslinging . | . . . . . . . . . . . . . . . . . . . . . . . . . . . . Exploded 6 | . . . . . 2 . . . . . 3 . . . . . . . . . . . . 3 6 2 1 Melee 1 | . . . . . . . . . . . . . . . . . . . . . . . . 1 . . . Uniques/NPCs Destroyed 3 | . . . . . . . . . . . . . . . . . . . . . . . . . . 2 1 MAIN.C Shell (-1/Command) MAIN.C (-1/Command) A8 (-1/Access_0) Combat | -11 -10 -10 -8 -8 -6 -6 -6 -5 -5 -5 -5 -5 -4 -4 -4 -4 -4 -4 -3 -3 -3 -2 -2 -2 -1 -1 -1 -------- Run | Yrd Mat Sub Rec Scr Fac Low Dat Pro Fac Upp Upp Zhi Pro Fac Was Fac Upp War Pro Res Tes Res Qua Frg Acc Com Ac0 Hostile Shots Fired 1474 | . 37 123 1 . 70 . . 6 107 6 22 . . 16 . 8 . . 4 . 38 24 13 160 362 265 212 Missed 573 | . 9 57 . . 28 . . 2 28 5 11 . . 6 . 1 . . 2 . 22 10 6 76 156 94 60 Intercepted 8 | . . . . . . . . . . . . . . . . . . . . . . . . . 3 5 . Hits 901 | . 28 66 1 . 42 . . 4 79 1 11 . . 10 . 7 . . 2 . 16 14 7 84 206 171 152 Melee 7 | . . . 1 . . . . . . . . . . . . . . . . . . . . 5 1 . . Projectile 894 | . 28 66 . . 42 . . 4 79 1 11 . . 10 . 7 . . 2 . 16 14 7 79 205 171 152 AOE 14 | . . . . . . . . . . . . . . . . . . 1 . . . . . 6 1 6 . Critical Strikes 57 | . . 1 . . 1 . . . 4 . . . . 1 . . . . . . 4 1 2 9 18 11 5 Actively Blocked 1 | . . . . . . . . . . . . . . . . . . . . . . . . . . . 1 Part Disruptions 16 | . . . . . . . . . . . . . . . . . . . . . . . 1 . 3 11 1 Damage Taken 18762 | . 356 569 31 . 483 . . 67 1749 18 210 . . 255 . 112 . 122 46 . 365 353 352 3013 3302 4020 3339 Core 2412 | . 60 140 . . 34 . . . 127 . 34 . . 44 . 28 . . 24 . 62 42 24 564 515 428 286 Absorbed by Shields 5871 | . . . . . . . . . . . . . . . . . . . . . . . . 214 1800 2250 1607 Reduced by Siege Mode 84 | . . . . . . . . . . . . . . . . . . . . . . . . . . . 84 Redirected to Shielding 274 | . . . . . . . . . . . . . . . . 11 . 28 . . . . . 133 . . 102 Ignored by Resistances 276 | . . . . . . . . . . . . . . . . . . . . . . . . 276 . . . Regen/Repaired (Parts) 3642 | . . . . . . . . . . . . . . . . 95 . 6 . . . . 327 809 1081 1324 . Core Remaining (%) 76 | 100 . . . 20 . . . 96 . . . . 83 . . . . . 91 . 95 . . 50 . . . Volleys Fired 1290 | 6 34 28 7 . 22 . . . 28 1 20 7 15 21 . 20 . 1 5 11 46 20 6 379 41 529 43 Largest 3 | 2 2 2 2 . 2 . . . 2 1 1 1 1 1 . 1 . 1 1 1 1 1 1 2 1 3 1 Hottest 320 | 40 40 100 50 . 85 . . . 125 85 85 85 85 85 . 85 . . 85 85 85 120 120 180 140 320 200 Shots Fired 1417 | 12 68 54 14 . 33 . . . 43 1 20 7 15 21 . 20 . 1 5 11 46 20 6 378 41 558 43 Gun 847 | 12 68 54 14 . 26 . . . 14 . . . . . . . . . . . . . . 243 . 416 . Cannon 484 | . . . . . 4 . . . 29 1 12 7 15 21 . 20 . . 5 11 46 20 6 75 30 139 43 Launcher 79 | . . . . . 3 . . . . . 5 . . . . . . . . . . . . 57 11 3 . Special 7 | . . . . . . . . . . . 3 . . . . . . 1 . . . . . 3 . . . Kinetic 255 | 12 68 18 14 . 26 . . . 15 . . . . . . . . . . . . . . 31 6 58 7 Thermal 397 | . . 36 . . 4 . . . 19 1 15 7 15 21 . 20 . . 5 11 46 17 6 33 24 81 36 Explosive 79 | . . . . . 3 . . . . . 5 . . . . . . . . . . . . 57 11 3 . Electromagnetic 668 | . . . . . . . . . 9 . . . . . . . . . . . . . . 243 . 416 . Entropic 14 | . . . . . . . . . . . . . . . . . . . . . . 3 . 11 . . . Robot Hit Streak 97 | 7 11 7 2 . 9 . . . 5 . 2 3 . . . . . 1 . . . . . 24 29 97 23 Robot Miss Streak 5 | 1 2 4 2 . 5 . . . 2 . 2 2 . . . 4 . . . . . . . 4 1 2 3 Penetration Max 1 | . . . . . . . . . . . . . . . . . . . . . . . . 1 . 1 . Secondary Targets . | . . . . . . . . . . . . . . . . . . . . . . . . . . . . Shots Hit Robots 818 | 9 49 31 8 . 22 . . . 32 1 7 5 . 1 . . . 1 . . . . . 99 13 508 32 Core Hits 376 | 7 19 11 6 . 21 . . . 8 1 14 3 . . . . . . . . . . . 131 70 61 24 Critical Kills 3 | . . . . . . . . . . . . . . . . . . . . . . . . . . 3 . Critical Parts Destroyed 2 | . . . . . . . . . . . . . . . . . . . . . . . . . . 2 . Critical Strikes 20 | . . 3 . . . . . . 2 . . . . . . . . . . . . . . 5 . 9 1 Burn 3 | . . 3 . . . . . . . . . . . . . . . . . . . . . . . . . Meltdown 3 | . . . . . . . . . . . . . . . . . . . . . . . . . . 3 . Destroy 3 | . . . . . . . . . . . . . . . . . . . . . . . . . . 3 . Blast 5 | . . . . . . . . . . . . . . . . . . . . . . . . 1 . 3 1 Sever 2 | . . . . . . . . . 2 . . . . . . . . . . . . . . . . . . Impale 4 | . . . . . . . . . . . . . . . . . . . . . . . . 4 . . . Melee Attacks 115 | . . . . . 13 . . . 11 8 11 . . 1 . . . . . . . . 4 26 . 41 . Impact 13 | . . . . . 13 . . . . . . . . . . . . . . . . . . . . . . Slashing 85 | . . . . . . . . . 11 8 11 . . . . . . . . . . . 4 10 . 41 . Piercing 16 | . . . . . . . . . . . . . . . . . . . . . . . . 16 . . . Sneak Attacks 10 | . . . . . 1 . . . 2 1 5 . . 1 . . . . . . . . . . . . . Combat Hostiles . | . . . . . . . . . . . . . . . . . . . . . . . . . . . . Follow-up Attacks . | . . . . . . . . . . . . . . . . . . . . . . . . . . . . Damage Inflicted 45131 | 67 384 411 199 . 938 . . . 1134 76 1067 122 . . . . . . . . . . . 13706 6207 12827 7993 Guns 3380 | 66 384 411 171 . 388 . . . 165 . . . . . . . . . . . . . . 1498 . 297 . Cannons 16388 | . . . . . . . . . 630 . . 122 . . . . . . . . . . . 1268 741 9257 4370 Explosions 22032 | . . . . . 414 . . . . . 656 . . . . . . . . . . . . 10514 5466 1359 3623 Melee 3205 | . . . . . 127 . . . 337 76 376 . . . . . . . . . . . . 375 . 1914 . Ramming 91 | 1 . . 28 . 9 . . . 2 . . . . . . . . . . . . . . 51 . . . Kinetic 6799 | 66 384 166 171 . 388 . . . 198 . . . . . . . . . . . . . . 879 61 3938 548 Thermal 14833 | . . 245 . . . . . . 381 . 35 122 . . . . . . . . . . . 521 680 5404 7445 Explosive 18192 | . . . . . 414 . . . . . 656 . . . . . . . . . . . . 10382 5466 1274 . Electromagnetic 2011 | . . . . . . . . . 216 . . . . . . . . . . . . . . 1498 . 297 . Impact 127 | . . . . . 127 . . . . . . . . . . . . . . . . . . . . . . Slashing 2703 | . . . . . . . . . 337 76 376 . . . . . . . . . . . . . . 1914 . Piercing 375 | . . . . . . . . . . . . . . . . . . . . . . . . 375 . . . Highest Corruption 38 | . . . . . 1 1 1 1 9 9 9 9 9 1 1 8 8 8 2 . 1 . 2 13 13 38 1 Average Corruption 8 | . . . . . 1 1 1 1 8 9 9 9 9 1 1 6 8 8 2 . 1 . 1 5 10 25 1 Corruption Purged 84 | . . . . . . . . . . . . . . . . . . . . . . . . 13 . 71 . Corruption Blocked . | . . . . . . . . . . . . . . . . . . . . . . . . . . . . Effects 297 | . . . . . 2 . 2 5 8 9 14 3 10 . . 6 . . . . . . 2 127 7 101 1 Message Errors 62 | . . . . . . . 2 2 1 2 2 1 2 . . . . . . . . . . 31 1 18 . Matter Fused 75 | . . . . . . . . 2 3 3 5 . 3 . . 5 . . . . . . . 35 1 17 1 Heat Flow Errors 40 | . . . . . 1 . . . . 2 3 2 . . . . . . . . . . . 18 . 14 . Energy Discharges 32 | . . . . . 1 . . 1 1 1 1 . 4 . . 1 . . . . . . 1 12 . 9 . Parts Rejected 4 | . . . . . . . . . . . . . . . . . . . . . . . . 2 . 2 . Parts Fused 3 | . . . . . . . . . . . . . . . . . . . . . . . . 2 1 . . Data Loss (minor) 23 | . . . . . . . . . . . 3 . 1 . . . . . . . . . . 9 2 8 . Data Loss (major) 16 | . . . . . . . . . 1 1 . . . . . . . . . . . . . 10 . 4 . Misfires 5 | . . . . . . . . . . . . . . . . . . . . . . . . . . 5 . Alerts 12 | . . . . . . . . . 1 . . . . . . . . . . . . . 1 4 2 4 . Misdirections 15 | . . . . . . . . . . . . . . . . . . . . . . . . 2 . 13 . Weapon Failures 10 | . . . . . . . . . 1 . . . . . . . . . . . . . . 2 . 7 . Overload Shots . | . . . . . . . . . . . . . . . . . . . . . . . . . . . . Overflow Damage 2391 | . . . . . 123 . . . 24 . 250 31 . . . . . . . . . . . 394 127 1006 436 Projectiles 1292 | . . . . . . . . . 24 . . 31 . . . . . . . . . . . 17 55 829 336 Explosions 833 | . . . . . 50 . . . . . 57 . . . . . . . . . . . . 377 72 177 100 Melee 266 | . . . . . 73 . . . . . 193 . . . . . . . . . . . . . . . . Knockbacks 18 | . . . 1 . 1 . . . . . . . . . . . . . . . . . . 2 1 11 2 Impact 2 | . . . 1 . 1 . . . . . . . . . . . . . . . . . . . . . . Kinetic 15 | . . . . . . . . . . . . . . . . . . . . . . . . 2 1 10 2 Secondary 1 | . . . . . . . . . . . . . . . . . . . . . . . . . . 1 . Self-Inflicted Damage 226 | . . . . . . . . . . . 43 . . . . . . . . . . . . 69 114 . . Shots 4 | . . . . . . . . . . . 1 . . . . . . . . . . . . 1 2 . . Rammed 7 | 1 . . 2 . 1 . . . 1 . . . . . . . . . . . . . . 2 . . . Targets Rammed 9 | 1 . . 4 . 1 . . . 1 . . . . . . . . . . . . . . 2 . . . Kicked . | . . . . . . . . . . . . . . . . . . . . . . . . . . . . Crushed 2 | . . . 2 . . . . . . . . . . . . . . . . . . . . . . . . Highest Temperature 486 | . 24 6 . . 177 . . . 360 268 486 301 146 360 101 270 . 192 124 258 320 341 76 235 150 223 203 Average Temperature 89 | . 8 6 . . 35 . . . 198 95 78 73 25 120 35 82 . 39 36 110 96 118 35 80 40 111 93 Received Heat Transfer 1339 | . 195 198 . . 42 . . . 243 9 . . . 30 . . . . 12 . 48 . . 193 237 132 . Thermoelectric Energy+ 3028 | . . . . . . . . . . . . . . . . . . . . . . . . . . 2897 131 Effects 20 | . . . . . . . . . 2 . 2 . . 8 . 3 . . . . 1 2 . . . 1 1 Shutdowns 2 | . . . . . . . . . . . 2 . . . . . . . . . . . . . . . . Energy Bleed 5 | . . . . . . . . . . . . . . 2 . . . . . . . 1 . . . 1 1 Interference 10 | . . . . . . . . . . . . . . 6 . 3 . . . . 1 . . . . . . Matter Decay 1 | . . . . . . . . . . . . . . . . . . . . . . 1 . . . . . Short Circuit 1 | . . . . . . . . . 1 . . . . . . . . . . . . . . . . . . Damage (minor) 1 | . . . . . . . . . 1 . . . . . . . . . . . . . . . . . . Siege Activations 3 | . . . . . . . . . . . . . . . . . . . . . . . . . . . 3 Total Turns 42 | . . . . . . . . . . . . . . . . . . . . . . . . . . . 42 Longest Duration 15 | . . . . . . . . . . . . . . . . . . . . . . . . . . . 15 Martial Activations . | . . . . . . . . . . . . . . . . . . . . . . . . . . . . Shielding Activations 4 | . . . . . . . . . . . . . . . . . . . . . . . . . . 4 . Total Turns 21 | . . . . . . . . . . . . . . . . . . . . . . . . . . 21 . Longest Duration 10 | . . . . . . . . . . . . . . . . . . . . . . . . . . 10 . Robots Disrupted 3 | . . . . . . . . . . . . . . . . . . . . . . . . 3 . . . Combat Hostiles 3 | . . . . . . . . . . . . . . . . . . . . . . . . 3 . . . Robots Corrupted 18 | . . . . . 2 . . . 1 . . . . . . . . . . . . . . 12 . 3 . Combat Hostiles 15 | . . . . . . . . . 1 . . . . . . . . . . . . . . 12 . 2 . Parts Fried 19 | . . . . . 3 . . . 1 . . . . . . . . . . . . . . 10 . 5 . Impact Corruptions 7 | . . . . . 3 . . . . . . . . . . . . . . . . . . . . 4 . Robots Melted 3 | . . . . . . . . . . . . . . . . . . . . . . . . . . 3 . Combat Hostiles 3 | . . . . . . . . . . . . . . . . . . . . . . . . . . 3 . Parts Melted 3 | . . 1 . . . . . . 1 . . . . . . . . . . . . . . . . 1 . Heat Transferred 6996 | . . 962 . . . . . . 370 . 74 222 . . . . . . . . . . . 464 400 1304 3200 Parts Sabotaged 4 | . . . . . . . . . . . . . . . . . . . . . . . . . 4 . . Parts Stolen . | . . . . . . . . . . . . . . . . . . . . . . . . . . . . Parts Stripped . | . . . . . . . . . . . . . . . . . . . . . . . . . . . . Power Chain Reactions 4 | . . . . . . . . . . . . . . . . . . . . . . . . 3 . 1 . Alert | -11 -10 -10 -8 -8 -6 -6 -6 -5 -5 -5 -5 -5 -4 -4 -4 -4 -4 -4 -3 -3 -3 -2 -2 -2 -1 -1 -1 ------- Run | Yrd Mat Sub Rec Scr Fac Low Dat Pro Fac Upp Upp Zhi Pro Fac Was Fac Upp War Pro Res Tes Res Qua Frg Acc Com Ac0 Maximum Alert Level 5 | . . . . . . . . . 1 . . . . 2 . . . . . . . . . 5 5 5 . Low Security (%) 25 | 100 100 . 100 . 100 . . . 97 . . . . . 100 100 . . . 100 100 100 100 10 . . . Level 1 1 | . . . . . . . . . 2 . . . . 48 . . . . . . . . . 1 . . . Level 2 2 | . . . . . . . . . . . . . . 51 . . . . . . . . . 5 . . . Level 3 1 | . . . . . . . . . . . . . . . . . . . . . . . . 5 . . . Level 4 5 | . . . . . . . . . . . . . . . . . . . . . . . . 13 52 . . Level 5 62 | . . . . . . . . . . . . . . . . . . . . . . . . 62 14 100 . High Security . | . . . . . . . . . . . . . . . . . . . . . . . . . 33 . . Max Security . | . . . . . . . . . . . . . . . . . . . . . . . . . . . . Peak Influence 2625 | 5 52 . 70 . 111 . . . 245 . . . . 450 99 67 . . . 18 15 33 47 2301 2625 2005 . Initial 1680 | . . . 20 . . . . . . . . . . 450 99 34 . . . . . . . . 1380 1680 . Average 985 | 1 10 . 10 . 19 . . . 59 . . . . 386 76 32 . . . 6 2 3 15 1596 1738 1927 . Influence Increases 9103 | 15 137 205 234 . 384 . . . 401 120 215 10 . 613 . 138 . . . 37 87 70 149 3080 1505 1127 576 Destroy 0b10 Robot/C 2420 | . 80 100 40 . 220 . . . 60 . 160 . . . . . . . . . . . . 1040 440 280 . Destroy 0b10 Robot/NC 190 | 15 15 . 20 . 20 . . . 5 . . 10 . . . . . . . . 5 . . 40 15 45 . Destroy Leader 268 | . 24 . . . 50 . . . 22 . 10 . . . . . . . . . . . . 80 52 30 . Allied During Kill 49 | . . . 6 . 20 . . . . . . . . . . . . . . . . . . 20 . 3 . Successful Hack 299 | . 18 . 18 . 33 . . . 15 . . . . 24 . 43 . . . 18 28 . 41 61 . . . Select Force Hacks 150 | . . . 150 . . . . . . . . . . . . . . . . . . . . . . . . Disable Machine 1140 | . . . . . 15 . . . 30 . . . . . . 15 . . . 15 30 . 60 795 120 60 . Anti-Garrison Action 200 | . . . . . . . . . 150 . . . . . . . . . . . . . . . . 50 . Destroy Structure 2137 | . . . . . 26 . . . 14 . . . . 34 . 50 . . . 4 24 40 18 354 533 464 576 Advance Influence 450 | . . . . . . . . . . . . . . 450 . . . . . . . . . . . . . Partial Spotted 210 | . . . . . . . . . 15 . . . . 60 . 30 . . . . . 30 30 30 15 . . Lose Combat Pursuer 1590 | . . 105 . . . . . . 90 120 45 . . 45 . . . . . . . . . 660 330 195 . Influence Decreases 8557 | 15 137 162 277 . 285 99 . . 156 182 278 130 . 330 234 167 8 12 . 37 87 70 149 779 1181 1165 2617 Entered New Map 4980 | . . . 23 . . 37 . . . 92 36 120 . . 184 15 8 12 . . . . . . 921 945 2587 Time Decay 2949 | 15 137 122 254 . 234 62 . . 96 90 222 10 . 180 50 137 . . . 37 85 50 129 739 180 120 . Search Patrol Dispatched 100 | . . . . . . . . . . . . . . 100 . . . . . . . . . . . . . Lost Part 402 | . . 40 . . 10 . . . 60 . 20 . . 40 . . . . . . 2 20 . 40 60 80 30 Lost Ally 111 | . . . . . 41 . . . . . . . . 10 . . . . . . . . 20 . 20 20 . Purge Threat 15 | . . . . . . . . . . . . . . . . 15 . . . . . . . . . . . Squads Dispatched 53 | . 1 . . . 7 . . . 10 . . . . 6 . 5 . . . 2 6 2 3 3 8 . . Investigation 20 | . 1 . . . 3 . . . 2 . . . . 5 . 4 . . . 2 . . . 2 1 . . Extermination 11 | . . . . . 2 . . . 2 . . . . 1 . . . . . . 1 1 3 . 1 . . Reinforcement 10 | . . . . . 2 . . . 2 . . . . . . 1 . . . . 3 1 . 1 . . . Assault 10 | . . . . . . . . . 2 . . . . . . . . . . . 2 . . . 6 . . Garrison 2 | . . . . . . . . . 2 . . . . . . . . . . . . . . . . . . Intercept . | . . . . . . . . . . . . . . . . . . . . . . . . . . . . Searches Triggered 1 | . . . . . . . . . . . . . . 1 . . . . . . . . . . . . . Unchained Authorized 1 | . . . . . . . . . . . . . . . . . . . . . . . . . 1 . . Construction Impeded . | . . . . . . . . . . . . . . . . . . . . . . . . . . . . Haulers Reinforced 2 | . . . . . . . . . 2 . . . . . . . . . . . . . . . . . . Active Scanning Responses . | . . . . . . . . . . . . . . . . . . . . . . . . . . . . Cargo Convoy Interrupts . | . . . . . . . . . . . . . . . . . . . . . . . . . . . . Stealth | -11 -10 -10 -8 -8 -6 -6 -6 -5 -5 -5 -5 -5 -4 -4 -4 -4 -4 -4 -3 -3 -3 -2 -2 -2 -1 -1 -1 --------- Run | Yrd Mat Sub Rec Scr Fac Low Dat Pro Fac Upp Upp Zhi Pro Fac Was Fac Upp War Pro Res Tes Res Qua Frg Acc Com Ac0 Distress Signals 60 | . . . . . . . . . . . . . . 2 . . . . . . 3 2 . 18 6 29 . Communications Jammed 64 | . . . . . . . . . . . . . . . . . . . . . 3 10 7 44 . . . Distress Signals 57 | . . . . . . . . . . . . . . . . . . . . . 3 10 . 44 . . . Times Spotted 481 | . 5 12 1 . 12 . . 2 9 8 15 . 2 15 . 10 . 29 7 2 26 18 12 180 76 24 16 Peak Tracking Total 20 | . 2 6 1 . 5 . . 2 5 8 5 . 2 5 . 6 . 8 7 2 14 14 5 16 20 9 4 Tactical Retreats 68 | . . 4 . . . . . . 2 2 2 . . 3 . . . . 1 . 5 4 2 26 10 7 . ECM-based Alert Blocks 40 | . . . . . . . . . . . . . . . . . . . 2 . 14 14 5 5 . . . Traps | -11 -10 -10 -8 -8 -6 -6 -6 -5 -5 -5 -5 -5 -4 -4 -4 -4 -4 -4 -3 -3 -3 -2 -2 -2 -1 -1 -1 ------- Run | Yrd Mat Sub Rec Scr Fac Low Dat Pro Fac Upp Upp Zhi Pro Fac Was Fac Upp War Pro Res Tes Res Qua Frg Acc Com Ac0 Traps Triggered 17 | . . . . . 3 . . . . . . . . 1 . . . . . . . . 1 11 . 1 . Indirectly . | . . . . . . . . . . . . . . . . . . . . . . . . . . . . Trap Hack Attempts . | . . . . . . . . . . . . . . . . . . . . . . . . . . . . Triggered . | . . . . . . . . . . . . . . . . . . . . . . . . . . . . Disarmed 1 | . 1 . . . . . . . . . . . . . . . . . . . . . . . . . . Reprogrammed . | . . . . . . . . . . . . . . . . . . . . . . . . . . . . Reused . | . . . . . . . . . . . . . . . . . . . . . . . . . . . . Traps Extracted . | . . . . . . . . . . . . . . . . . . . . . . . . . . . . Installed . | . . . . . . . . . . . . . . . . . . . . . . . . . . . . Triggered . | . . . . . . . . . . . . . . . . . . . . . . . . . . . . Machines | -11 -10 -10 -8 -8 -6 -6 -6 -5 -5 -5 -5 -5 -4 -4 -4 -4 -4 -4 -3 -3 -3 -2 -2 -2 -1 -1 -1 ---------- Run | Yrd Mat Sub Rec Scr Fac Low Dat Pro Fac Upp Upp Zhi Pro Fac Was Fac Upp War Pro Res Tes Res Qua Frg Acc Com Ac0 Machines Disabled 93 | . . . . . 1 . . . 3 . . 1 . . . 1 . . . 1 2 1 4 65 8 6 . Max in Single Turn 9 | . . . . . 1 . . . 1 . . 1 . . . 1 . . . 1 1 1 1 9 2 2 . Garrison Access 7 | . . . . . 1 . . . 1 . . . . . . 1 . . . 1 1 1 . 1 . . . Phase Generator 1 | . . . . . . . . . . . . . . . . . . . . . . . . . . 1 . Machines Repaired . | . . . . . . . . . . . . . . . . . . . . . . . . . . . . Machines Dismantled . | . . . . . . . . . . . . . . . . . . . . . . . . . . . . Machines Sabotaged . | . . . . . . . . . . . . . . . . . . . . . . . . . . . . Overloaded Fab Kills . | . . . . . . . . . . . . . . . . . . . . . . . . . . . . Hacking | -11 -10 -10 -8 -8 -6 -6 -6 -5 -5 -5 -5 -5 -4 -4 -4 -4 -4 -4 -3 -3 -3 -2 -2 -2 -1 -1 -1 --------- Run | Yrd Mat Sub Rec Scr Fac Low Dat Pro Fac Upp Upp Zhi Pro Fac Was Fac Upp War Pro Res Tes Res Qua Frg Acc Com Ac0 Machines Accessed 94 | . 5 . 11 1 8 . 3 . 7 . 2 4 . 7 . 13 . 4 . 7 6 2 8 5 1 . . Terminals 39 | . 4 . 6 . 3 . . . 3 . . . . 2 . 5 . . . 3 3 1 5 3 1 . . Fabricators 4 | . . . . . . . . . . . . . . 1 . 2 . . . . 1 . . . . . . Repair Stations 4 | . . . . . 1 . . . 1 . . . . . . 1 . . . . . . 1 . . . . Recycling Units 21 | . 1 . 5 . 3 . . . 2 . . . . 4 . 3 . . . 2 . . . 1 . . . Scanalyzers 4 | . . . . . . . . . . . . . . . . 1 . . . 1 1 . 1 . . . . Garrison Access 8 | . . . . . 1 . . . 1 . . . . . . 1 . . . 1 1 1 1 1 . . . Total Hacks 244 | . 16 . 26 1 14 . 27 . 13 . 7 17 . 19 . 37 . 10 . 12 10 5 19 9 2 . . Successful 165 | . 9 . 14 1 6 . 27 . 5 . 7 17 . 11 . 29 . 10 . 7 4 2 10 6 . . . Failed 79 | . 7 . 12 . 8 . . . 8 . . . . 8 . 8 . . . 5 6 3 9 3 2 . . Catastrophic 11 | . . . 1 . 3 . . . 2 . . . . 1 . . . . . . 1 . 1 . 2 . . Database Lockouts . | . . . . . . . . . . . . . . . . . . . . . . . . . . . . Manual 128 | . 13 . 27 . 7 . . . 10 . . . . 18 . 23 . 1 . 8 3 4 11 3 . . . Terminals 115 | . 14 . 19 . 7 . . . 8 . . . . 11 . 18 . . . 7 5 4 13 7 2 . . Fabricators 14 | . . . . . . . . . . . . . . 1 . 11 . . . . 2 . . . . . . Repair Stations 7 | . . . . . 1 . . . 1 . . . . . . 3 . . . . . . 2 . . . . Recycling Units 29 | . 2 . 7 . 5 . . . 2 . . . . 7 . 3 . . . 2 . . . 1 . . . Scanalyzers 5 | . . . . . . . . . . . . . . . . 1 . . . 1 1 . 2 . . . . Garrison Access 12 | . . . . . 1 . . . 2 . . . . . . 1 . . . 2 2 1 2 1 . . . Terminal Hacks 99 | . 3 . 2 1 2 . 27 . . . 7 17 . 5 . 11 . 10 . 3 1 1 5 4 . . . Record 27 | . . . . . . . 6 . . . 6 5 . . . 1 . 9 . . . . . . . . . Part Schematic 19 | . . . . . . . 13 . . . . 4 . 1 . 1 . . . . . . . . . . . Robot Schematic 5 | . . . . . . . 5 . . . . . . . . . . . . . . . . . . . . Robot Analysis 4 | . . . . . . . . . . . . 4 . . . . . . . . . . . . . . . Prototype ID Bank 7 | . . . . . . . 3 . . . . 4 . . . . . . . . . . . . . . . Open Door 2 | . . . . . . . . . . . 1 . . . . . . 1 . . . . . . . . . Branch Access Points 4 | . . . . . 1 . . . . . . . . . . 1 . . . 1 . 1 . . . . . Terminal Index 2 | . . . 1 . . . . . . . . . . . . 1 . . . . . . . . . . . Fabricator Index 1 | . . . . . . . . . . . . . . . . 1 . . . . . . . . . . . Recycling Unit Index 2 | . . . 1 . . . . . . . . . . . . 1 . . . . . . . . . . . Unreport Threat 1 | . . . . . . . . . . . . . . . . 1 . . . . . . . . . . . Locate Traps 4 | . . . . . 1 . . . . . . . . . . 1 . . . . . . 1 1 . . . Disarm Traps 1 | . 1 . . . . . . . . . . . . . . . . . . . . . . . . . . Maintenance Status 3 | . . . . . . . . . . . . . . . . . . . . 1 . . 1 1 . . . Patrol Status 4 | . 1 . . . . . . . . . . . . . . 1 . . . . . . 1 1 . . . Recall Investigation 4 | . . . . . . . . . . . . . . 2 . 1 . . . 1 . . . . . . . Recall Extermination 2 | . . . . . . . . . . . . . . 1 . . . . . . . . 1 . . . . Recall Reinforcements 1 | . . . . . . . . . . . . . . 1 . . . . . . . . . . . . . Zone Layout 4 | . 1 . . . . . . . . . . . . . . 1 . . . . . . 1 1 . . . Proto ID Catalog 1 | . . . . 1 . . . . . . . . . . . . . . . . . . . . . . . Protovariant Controls 1 | . . . . . . . . . . . . . . . . . . . . . 1 . . . . . . Fabricator Hacks 9 | . . . . . . . . . . . . . . 1 . 8 . . . . . . . . . . . Network Status 2 | . . . . . . . . . . . . . . 1 . 1 . . . . . . . . . . . Load Schematic 4 | . . . . . . . . . . . . . . . . 4 . . . . . . . . . . . Build 3 | . . . . . . . . . . . . . . . . 3 . . . . . . . . . . . Repair Station Hacks 5 | . . . . . . . . . 1 . . . . . . 2 . . . . . . 2 . . . . Scan Component 2 | . . . . . . . . . . . . . . . . 1 . . . . . . 1 . . . . Repair 2 | . . . . . . . . . . . . . . . . 1 . . . . . . 1 . . . . Refit 1 | . . . . . . . . . 1 . . . . . . . . . . . . . . . . . . Recycling Unit Hacks . | . . . . . . . . . . . . . . . . . . . . . . . . . . . . Scanalyzer 3 | . . . . . . . . . . . . . . . . . . . . 1 1 . 1 . . . . Insert Component 1 | . . . . . . . . . . . . . . . . . . . . . . . 1 . . . . Retrieve Study 2 | . . . . . . . . . . . . . . . . . . . . 1 1 . . . . . . Garrison Access Hacks 6 | . . . . . 1 . . . . . . . . . . 1 . . . 1 1 1 . 1 . . . Seal Access 6 | . . . . . 1 . . . . . . . . . . 1 . . . 1 1 1 . 1 . . . Unauthorized Hacks 43 | . 6 . 12 . 3 . . . 4 . . . . 5 . 7 . . . 2 1 . 2 1 . . . Terminals 21 | . 6 . 7 . 1 . . . 2 . . . . 1 . 2 . . . . . . 2 . . . . Assimilate 6 | . . . . . 1 . . . . . . . . 1 . 2 . . . . . . 2 . . . . Botnet 6 | . 2 . 2 . . . . . 2 . . . . . . . . . . . . . . . . . . Disrupt 1 | . . . 1 . . . . . . . . . . . . . . . . . . . . . . . . Operators 1 | . 1 . . . . . . . . . . . . . . . . . . . . . . . . . . Skim 7 | . 3 . 4 . . . . . . . . . . . . . . . . . . . . . . . . Fabricators 3 | . . . . . . . . . . . . . . . . 2 . . . . 1 . . . . . . Prioritize 1 | . . . . . . . . . . . . . . . . 1 . . . . . . . . . . . Liberate 1 | . . . . . . . . . . . . . . . . . . . . . 1 . . . . . . Recompile 1 | . . . . . . . . . . . . . . . . 1 . . . . . . . . . . . Repair Stations . | . . . . . . . . . . . . . . . . . . . . . . . . . . . . Recycling Units 19 | . . . 5 . 2 . . . 2 . . . . 4 . 3 . . . 2 . . . 1 . . . Tunnel 5 | . . . 5 . . . . . . . . . . . . . . . . . . . . . . . . Fedlink 14 | . . . . . 2 . . . 2 . . . . 4 . 3 . . . 2 . . . 1 . . . Scanalyzers . | . . . . . . . . . . . . . . . . . . . . . . . . . . . . Garrison Access . | . . . . . . . . . . . . . . . . . . . . . . . . . . . . Data Cores Recovered . | . . . . . . . . . . . . . . . . . . . . . . . . . . . . Used . | . . . . . . . . . . . . . . . . . . . . . . . . . . . . Hacking Detections 53 | . 5 . 7 . 5 . . . 5 . . . . 3 . 6 . . . 3 6 1 8 3 1 . . Full Trace Events 3 | . 1 . . . . . . . . . . . . 1 . . . . . . . . . . 1 . . Feedback Events . | . . . . . . . . . . . . . . . . . . . . . . . . . . . . Feedback Blocked . | . . . . . . . . . . . . . . . . . . . . . . . . . . . . Robot Schematics Acquired 7 | . . . . . . . 5 . . . . . . . . . . . . . . . . 2 . . . Robots Built . | . . . . . . . . . . . . . . . . . . . . . . . . . . . . Authchips . | . . . . . . . . . . . . . . . . . . . . . . . . . . . . Time . | . . . . . . . . . . . . . . . . . . . . . . . . . . . . Total Robot Build Rating . | . . . . . . . . . . . . . . . . . . . . . . . . . . . . Part Schematics Acquired 18 | . . . . . . . 13 . . . . 4 . 1 . . . . . . . . . . . . . Parts Built 3 | . . . . . . . . . . . . . . . . 3 . . . . . . . . . . . Authchips 3 | . . . . . . . . . . . . . . . . 3 . . . . . . . . . . . Time 126 | . . . . . . . . . . . . . . . . 126 . . . . . . . . . . . Total Part Build Rating 18 | . . . . . . . . . . . . . . . . 18 . . . . . . . . . . . Part Studies Acquired 2 | . . . . . . . . . . . . . . . . . . . . 1 1 . . . . . . Parts Repaired 2 | . . . . . . . . . . . . . . . . 1 . . . . . . 1 . . . . Time 78 | . . . . . . . . . . . . . . . . 34 . . . . . . 44 . . . . Parts Recycled . | . . . . . . . . . . . . . . . . . . . . . . . . . . . . Recycled Matter . | . . . . . . . . . . . . . . . . . . . . . . . . . . . . Retrieved Matter . | . . . . . . . . . . . . . . . . . . . . . . . . . . . . Retrieved Components . | . . . . . . . . . . . . . . . . . . . . . . . . . . . . Parts Scanalyzed . | . . . . . . . . . . . . . . . . . . . . . . . . . . . . Part Schematics Acquired . | . . . . . . . . . . . . . . . . . . . . . . . . . . . . Parts Damaged . | . . . . . . . . . . . . . . . . . . . . . . . . . . . . Bothacking | -11 -10 -10 -8 -8 -6 -6 -6 -5 -5 -5 -5 -5 -4 -4 -4 -4 -4 -4 -3 -3 -3 -2 -2 -2 -1 -1 -1 ------------ Run | Yrd Mat Sub Rec Scr Fac Low Dat Pro Fac Upp Upp Zhi Pro Fac Was Fac Upp War Pro Res Tes Res Qua Frg Acc Com Ac0 Used RIF Installer . | . . . . . . . . . . . . . . . . . . . . . . . . . . . . Robots Hacked 1 | . . . . . . . . . . . . . . 1 . . . . . . . . . . . . . Non-combat 1 | . . . . . . . . . . . . . . 1 . . . . . . . . . . . . . Combat . | . . . . . . . . . . . . . . . . . . . . . . . . . . . . Robot Hacks Applied 1 | . . . . . . . . . . . . . . 1 . . . . . . . . . . . . . find_chute 1 | . . . . . . . . . . . . . . 1 . . . . . . . . . . . . . Relay Couplers Released 3 | . . . . . . . . . 2 . . . . . . . . . . . . . . 1 . . . Machine Destruction 3 | . . . . . . . . . 2 . . . . . . . . . . . . . . 1 . . . Fabnet Peak Effective % . | . . . . . . . . . . . . . . . . . . . . . . . . . . . . Robots Rewired 11 | . . . 10 . . . . . . . . . . . . . . . . . . . . 1 . . . Allies Hacked . | . . . . . . . . . . . . . . . . . . . . . . . . . . . . Hacks Repelled . | . . . . . . . . . . . . . . . . . . . . . . . . . . . . Allies | -11 -10 -10 -8 -8 -6 -6 -6 -5 -5 -5 -5 -5 -4 -4 -4 -4 -4 -4 -3 -3 -3 -2 -2 -2 -1 -1 -1 -------- Run | Yrd Mat Sub Rec Scr Fac Low Dat Pro Fac Upp Upp Zhi Pro Fac Was Fac Upp War Pro Res Tes Res Qua Frg Acc Com Ac0 Total Allies 18 | . . . 10 . 1 . . . . . . . . 1 . 1 . . . . 2 . 2 1 . . . Largest Group 10 | . . . 10 10 10 1 1 1 . . . . . 1 . 1 . . . . 2 . 2 1 1 . . Highest-Rated Group 141 | . . . 141 138 138 10 10 10 . . . . . 26 . 45 . . . . 112 . 71 120 97 . . Highest-Rated Ally 120 | . . . 21 21 21 10 10 10 . . . . . 26 . 45 . . . . 56 . 45 120 97 . . Initial UFD Resources 99 | . . . . . 23 37 37 40 40 54 54 54 56 56 74 74 80 80 83 83 97 99 99 99 . . . Total Orders 44 | . . . 3 2 5 . . . . . . . . . . . . . . . . . . 17 . 6 11 STAY 14 | . . . 2 1 3 . . . . . . . . . . . . . . . . . . 8 . . . FOLLOW 12 | . . . 1 1 2 . . . . . . . . . . . . . . . . . . 8 . . . EXPLORE 5 | . . . . . . . . . . . . . . . . . . . . . . . . . . . 5 RETURN 13 | . . . . . . . . . . . . . . . . . . . . . . . . 1 . 6 6 Ally Attacks 87 | . . . 3 . 22 . . . . . . . . . . . . . . . 2 . . 6 1 53 . Total Damage 4266 | . . . 48 . 559 . . . . . . . . . . . . . . . 135 . . 271 . 3253 . Kills 7 | . . . . . 4 . . . . . . . . . . . . . . . 1 . . 1 . 1 . Allies Corrupted 1 | . . . . . . . . . . . . . . . . . . . . . . . . . . 1 . Allies Melted 3 | . . . . . . . . . . . . . . . . . . 2 . . . . . 1 . . . Intel | -11 -10 -10 -8 -8 -6 -6 -6 -5 -5 -5 -5 -5 -4 -4 -4 -4 -4 -4 -3 -3 -3 -2 -2 -2 -1 -1 -1 ------- Run | Yrd Mat Sub Rec Scr Fac Low Dat Pro Fac Upp Upp Zhi Pro Fac Was Fac Upp War Pro Res Tes Res Qua Frg Acc Com Ac0 Active Infowar (turns) 19098 | . 579 500 1103 2805 1057 257 132 854 433 194 470 110 213 365 105 253 3 1112 152 109 506 367 360 6208 498 353 . Optics 2952 | . . . . . . . . . . . . . . . . . . . . . . . . 2952 . . . Sensors 8277 | . . . . . 645 257 132 854 433 194 470 103 213 365 105 200 3 1112 152 109 506 367 339 1718 . . . Terrain 53 | . . . . . . . . . . . . . . . . 53 . . . . . . . . . . . Seismic 6774 | . 579 500 1103 2805 1044 . . . . . . . . . . . . . . . . . 269 17 397 60 . Decoding 731 | . . . . . . . . . . 180 470 81 . . . . . . . . . . . . . . . Cloaking 3974 | . . . . . . . . . . . . . . . . . . . . . . . . 3149 472 353 . Jamming 1606 | . . . . . . . . . . . . . . . . . . . . 82 487 367 360 310 . . . ECM 1535 | . . . . . . . . . . . . . . 1 . 2 . . 22 109 506 367 358 170 . . . Robot Analysis Total 4 | . . . . . . . . . . . . 4 . . . . . . . . . . . . . . . Derelict Logs Recovered 9 | . . 1 . 1 . . . 2 . 1 3 . 1 . . . . . . . . . . . . . . Drone Launches 21 | . . . . . . . . . . . . . . . . . . . . . . . . 5 . 10 6 Drone Recoveries 18 | . . . . . . . . . . . . . . . . . . . . . . . . 5 . 7 6 Exploration | -11 -10 -10 -8 -8 -6 -6 -6 -5 -5 -5 -5 -5 -4 -4 -4 -4 -4 -4 -3 -3 -3 -2 -2 -2 -1 -1 -1 ------------- Run | Yrd Mat Sub Rec Scr Fac Low Dat Pro Fac Upp Upp Zhi Pro Fac Was Fac Upp War Pro Res Tes Res Qua Frg Acc Com Ac0 Turns Passed 30299 | 101 583 500 1103 2805 1057 257 132 854 591 194 470 110 213 368 108 282 16 1115 152 109 506 367 360 7469 560 9664 253 Spaces Moved 29571 | 45 221 226 572 1242 496 161 83 532 546 470 996 201 569 1103 387 740 1 1345 515 316 651 405 808 8591 946 7329 74 Core 10 | 2 . . . . . . . . . . . . . . . . . . . . 8 . . . . . . Treads 4327 | 43 221 226 572 1242 496 161 83 532 194 . . . . . . . . . . . . . . . . 483 74 Legs 5166 | . . . . . . . . . . . . . . . . . . . . . . . . . . 5166 . Wheels . | . . . . . . . . . . . . . . . . . . . . . . . . . . . . Hover 7838 | . . . . . . . . . . . . . . . . . . . . . . . . 5212 946 1680 . Flight 12230 | . . . . . . . . . 352 470 996 201 569 1103 387 740 1 1345 515 316 643 405 808 3379 . . . Fastest Speed 5 | 50 160 160 160 160 156 159 159 158 25 31 23 21 21 21 21 20 20 20 20 20 5 7 7 5 36 36 138 Average Speed 63 | 155 160 160 160 222 159 159 159 158 79 31 26 23 21 21 21 20 20 20 20 20 22 16 18 30 38 95 145 Slowest Speed 375 | 160 160 160 160 240 240 159 159 159 168 31 103 96 96 96 21 23 20 90 90 20 200 17 89 120 90 375 150 Overloaded Moves 82 | . . . . . . . . . . . . . . . . . . . . . 3 8 13 58 . . . Propulsion Burnouts . | . . . . . . . . . . . . . . . . . . . . . . . . . . . . Robots Hopped 82 | . . . . . . . . . . 1 . . 1 23 1 9 . . 3 7 6 1 9 21 . . . Potential Cave-ins 13 | . . . . . . . . . . . . . . . . . . 3 . . . 1 . 9 . . . Cave-ins Triggered . | . . . . . . . . . . . . . . . . . . . . . . . . . . . . Teleports 8 | . . . . . . . . . . . . . . . . . . . . . . . . 7 . 1 . Exploration Rate (%) 50 | 4 45 8 63 78 18 26 68 67 16 74 92 60 73 28 95 15 2 91 82 14 75 16 87 77 31 82 14 Regions Visited 27 Branch Regions 18 Pre-discovered Areas 12 | . . . 5 . 1 . 1 . . 1 1 3 . . . . . . . . . . . . . . . Known Exits Taken 18 | . . . . . 1 1 1 1 1 1 1 1 1 . . 1 1 1 1 1 1 1 1 1 . . . Unknown Exits Taken 7 | 1 1 1 1 1 . . . . . . . . . . . . . . . . . . . . 1 1 . Scrap Searched 19 | . . . . 6 . . . 1 . 3 3 . 2 . . . . . 4 . . . . . . . . Spaces Dug 362 | . . . . . 30 . . . 3 7 48 . 4 12 . 10 . . 3 1 9 10 5 18 154 48 . Terrain Destroyed 1248 | . . . . . 37 . . . 6 8 89 . 15 21 . 27 . . 5 2 9 17 6 195 245 349 217 Melee 32 | . . . . . 8 . . . . 7 5 . . . . . . . . . . . 2 10 . . . Projectile 231 | . . . . . 4 . . . 6 1 12 . 15 21 . 18 . . 5 2 9 17 4 21 40 48 8 AOE 985 | . . . . . 25 . . . . . 72 . . . . 9 . . . . . . . 164 205 301 209 Terrain Rammed . | . . . . . . . . . . . . . . . . . . . . . . . . . . . . Walls Destroyed . | . . . . . . . . . . . . . . . . . . . . . . . . . . . . Machines Disabled . | . . . . . . . . . . . . . . . . . . . . . . . . . . . . Actions | -11 -10 -10 -8 -8 -6 -6 -6 -5 -5 -5 -5 -5 -4 -4 -4 -4 -4 -4 -3 -3 -3 -2 -2 -2 -1 -1 -1 --------- Run | Yrd Mat Sub Rec Scr Fac Low Dat Pro Fac Upp Upp Zhi Pro Fac Was Fac Upp War Pro Res Tes Res Qua Frg Acc Com Ac0 Total 39373 | 63 397 309 748 1288 705 162 84 546 658 508 1168 255 647 1188 412 836 16 2188 555 343 960 681 999 12992 1096 9379 190 Wait 7066 | . 129 48 29 11 126 2 . . 16 26 118 22 49 65 . 66 16 791 35 15 267 248 158 3542 86 1172 29 Move 29396 | 45 220 225 571 1241 495 160 82 531 545 467 995 200 566 1059 384 722 . 1344 510 302 638 402 790 8555 945 7328 74 Hop 66 | . . . . . . . . . . 1 . . 1 21 1 8 . . 1 6 6 1 8 12 . . . Pick Up 306 | 6 8 1 12 15 14 . . 2 7 1 3 1 2 3 5 4 . 10 1 3 1 2 9 92 3 83 18 Fast Attach 167 | 6 . . . 1 9 . . 1 7 1 3 11 2 5 9 1 . 10 . 1 1 1 5 63 3 27 . Attach 139 | . 2 3 . . 5 . . 2 11 1 4 . 3 3 2 2 . 1 1 1 . 4 3 40 9 40 2 Detach 51 | . . . . . . . . . 4 1 3 . 2 . . . . 1 . . . . 1 16 4 19 . Swap 176 | . 2 4 2 5 9 . . 4 5 . 7 3 1 4 . 10 . 10 1 1 . 2 4 79 4 14 5 Drop 389 | . 2 . 6 15 11 . 2 6 23 1 3 11 6 4 11 3 . 20 1 3 1 1 11 127 1 101 19 Fire 1290 | 6 34 28 7 . 22 . . . 28 1 20 7 15 21 . 20 . 1 5 11 46 20 6 379 41 529 43 Melee 115 | . . . . . 13 . . . 11 8 11 . . 1 . . . . . . . . 4 26 . 41 . Ram 2 | . . . . . . . . . . . . . . . . . . . . . . . . 2 . . . Kick . | . . . . . . . . . . . . . . . . . . . . . . . . . . . . Crush 6 | . . . 4 . 1 . . . 1 . . . . . . . . . . . . . . . . . . Escape Stasis 46 | . . . . . . . . . . . . . . . . . . . . . . . . 44 . 2 . Rewire 145 | . . . 117 . . . . . . . . . . . . . . . . . . . . 5 . 23 . Trap . | . . . . . . . . . . . . . . . . . . . . . . . . . . . . Miscellaneous 13 | . . . . . . . . . . . 1 . . 2 . . . . . . . . . 10 . . . Route ------- -11/Scrapyard -10/Materials (discovered 3 exits: [*Mat] / [*Min] / [*Sub]) -10/Subcaves -8/Recycling -8/Scraptown (discovered 2 exits: *Fac x2) -6/Factory (discovered 2 exits: *Low x2) -6/Lower Caves -6/Data Miner -5/Proximity Caves -5/Factory -5/Upper Caves -5/Upper Caves (discovered 2 exits: *Fac / *Zhi) -5/Zhirov -4/Proximity Caves -4/Factory (discovered 2 exits: *Res / *Upp) -4/Waste -4/Factory (discovered 5 exits: *Res / *Upp x2 / Ext x2) -4/Upper Caves -4/Warlord -3/Proximity Caves -3/Research (discovered 5 exits: Res x2 / Arm / *Tes x2) -3/Testing -2/Research (discovered 3 exits: Acc / *Qua x2) -2/Quarantine (discovered 3 exits: *Acc / [*Sec] / *Frg) -2/Protoforge -1/Access (discovered 2 exits: [*Sur] / [*Com]) -1/Command (discovered 3 exits: [*Sur x2] / [*Ac0]) -1/Access_0 History --------- Turn | Location | Event 34 | -11/Scrapyard | Discovered new exit (range 16) 102 | -11/Scrapyard | Entered Materials 317 | -10/Materials | Build established: Mutant 448 | -10/Materials | Discovered new exit (range 7) 567 | -10/Materials | Discovered new exit (range 5) 659 | -10/Materials | Discovered new exit (range 8) 685 | -10/Materials | Entered Subcaves 686 | -10/Subcaves | Approached by a straggling Scientist 695 | -10/Subcaves | Learned Materials non-interactive machine intel 864 | -10/Subcaves | Discovered new exit (range 16) 1061 | -10/Subcaves | Core integrity fell below 50% 1185 | -10/Subcaves | Entered Recycling 2102 | -8/Recycling | Build established: Commander-Mutant 2215 | -8/Recycling | Scanned before Scraplab entrance 2239 | -8/Recycling | Entered Scraplab 2252 | -8/Recycling | Discovered new exit (range 4) 2288 | -8/Recycling | Entered Scraptown 2288 | -8/Scraptown | Accompanied by 10 allies 2527 | -8/Scraptown | Discovered new exit (range 11) 2599 | -8/Scraptown | Scanned Subdweller tech in exchange for log data 2604 | -8/Scraptown | Learned Research terminal intel 3106 | -8/Scraptown | Visited UFD Registry 3121 | -8/Scraptown | Registered with UFD as "Spikestep" 3231 | -8/Scraptown | Visited Science Guys 3308 | -8/Scraptown | Visited DA-N13 Charitable Foundation 3317 | -8/Scraptown | Found DCF Scrap (28 items) 3377 | -8/Scraptown | Visited Junk Cannon Lab 3411 | -8/Scraptown | Visited Infowarlord's Domain 3454 | -8/Scraptown | Visited Junk Repository 3485 | -8/Scraptown | Visited Modified Component R&D 3529 | -8/Scraptown | Visited Science Testing Area 3569 | -8/Scraptown | Visited Curators Association 3663 | -8/Scraptown | Visited Derelict Rescue Squad 4695 | -8/Scraptown | Found Exp. Sensor Array 4919 | -8/Scraptown | Met Optimus 4919 | -8/Scraptown | Accepted into 0bPrime 5067 | -8/Scraptown | Discovered new exit (range 3) 5093 | -8/Scraptown | Entered Factory 5093 | -6/Factory | Accompanied by 10 allies 5093 | -6/Factory | Evolved 8 slots: Power x1, Propulsion x3, Utility x4 5192 | -6/Factory | Loaded intel: 8 recycling unit locations 5226 | -6/Factory | Learned location of Protoforge (-2) 5270 | -6/Factory | Identified exit to Lower Caves 5419 | -6/Factory | Lost 8 allies 5683 | -6/Factory | Build established: Mutant 6150 | -6/Factory | Entered Lower Caves 6150 | -6/Lower Caves | Accompanied by 1 ally 6390 | -6/Lower Caves | A Derelict revealed a hidden shortcut to meet someone special 6404 | -6/Lower Caves | Identified exit to Data Miner 6407 | -6/Lower Caves | Entered Data Miner 6407 | -6/Data Miner | Accompanied by 1 ally 6407 | -6/Data Miner | Discovered new exit (range 6) 6417 | -6/Data Miner | Build established: Derelict-Mutant 6439 | -6/Data Miner | Met Data Miner 6466 | -6/Data Miner | Acquired the access code to Warlord's prototype stash 6466 | -6/Data Miner | Learned location of Section 7 (-2) 6491 | -6/Data Miner | Received God Mode back door access code from Data Miner 6537 | -6/Data Miner | Identified exit to Proximity Caves 6539 | -6/Data Miner | Entered Proximity Caves 6539 | -5/Proximity Caves | Accompanied by 1 ally 6635 | -5/Proximity Caves | Identified exit to Factory 6821 | -5/Proximity Caves | Found DCF Scrap (16 items) 7393 | -5/Proximity Caves | Entered Factory 7393 | -5/Factory | Evolved 2 slots: Propulsion x1, Utility x1 7545 | -5/Factory | Loaded intel: 8 recycling unit locations 7814 | -5/Factory | Lost 3 parts (1p1u1w) 7868 | -5/Factory | Lost 3 parts (2n1u) 7933 | -5/Factory | Discovered new exit (range 6) 7935 | -5/Factory | Identified exit to Upper Caves 7984 | -5/Factory | Entered Upper Caves 8023 | -5/Upper Caves | Encountered a Warlord checkpoint 8154 | -5/Upper Caves | Discovered new exit (range 15) 8178 | -5/Upper Caves | Identified exit to Upper Caves 8178 | -5/Upper Caves | Entered another Upper Caves area 8182 | -5/Upper Caves | Learned 8 Factory zone layouts 8207 | -5/Upper Caves | Discovered new exit (range 3) 8207 | -5/Upper Caves | Identified exit to Factory 8244 | -5/Upper Caves | Build established: Hacker-Sprinter 8347 | -5/Upper Caves | Encountered a Warlord checkpoint 8481 | -5/Upper Caves | Learned location of Armory (-3) 8494 | -5/Upper Caves | Learned Factory terminal intel 8579 | -5/Upper Caves | Entered an active Warlord outpost 8583 | -5/Upper Caves | Learned Research terminal intel 8583 | -5/Upper Caves | Learned Extension trap positions 8583 | -5/Upper Caves | Learned 8 Research zone layouts 8646 | -5/Upper Caves | Discovered new exit (range 10) 8648 | -5/Upper Caves | Identified exit to Zhirov 8648 | -5/Upper Caves | Entered Zhirov 8648 | -5/Zhirov | Discovered new exit (range 3) 8653 | -5/Zhirov | Met Zhirov 8657 | -5/Zhirov | Learned location of Quarantine (-2) 8657 | -5/Zhirov | Learned location of Testing (-3) 8657 | -5/Zhirov | Learned location of Command (-1) 8659 | -5/Zhirov | Zhirov requested help retrieving the SGEMP Prototype 8663 | -5/Zhirov | Found Alien Artifact 8663 | -5/Zhirov | Identified Integrated Reactor 8663 | -5/Zhirov | Installed Integrated Reactor, increased core energy generation (+10) 8742 | -5/Zhirov | Found Alien Artifact 8757 | -5/Zhirov | Identified exit to Proximity Caves 8758 | -5/Zhirov | Entered Proximity Caves 8761 | -4/Proximity Caves | Spotter reported a threat 8761 | -4/Proximity Caves | Spotter reported a threat 8814 | -4/Proximity Caves | Spotter reported a threat 8962 | -4/Proximity Caves | Discovered exit to Factory (range 7) 8964 | -4/Proximity Caves | Learned Research security intel 8971 | -4/Proximity Caves | Entered Factory 8971 | -4/Factory | Evolved 2 slots: Utility x2 8972 | -4/Factory | Discovered new exit (range 16) 8973 | -4/Factory | Loaded intel: 28 terminal locations 9054 | -4/Factory | Loaded intel: 8 recycling unit locations 9087 | -4/Factory | Identified exit to Upper Caves 9221 | -4/Factory | Search patrols dispatched 9336 | -4/Factory | Discovered new exit (range 9) 9339 | -4/Factory | Manually triggered Chute Trap 9339 | -4/Factory | Sucked down chute 9339 | -4/Factory | Entered Waste 9339 | -4/Waste | The area was eerily silent 9369 | -4/Waste | Lost 4 parts (2p2u) 9392 | -4/Waste | Found Fusion Bomb Launcher 9418 | -4/Waste | Discovered new exit (range 11) 9446 | -4/Waste | Identified exit to Factory 9447 | -4/Waste | Entered Factory 9451 | -4/Factory | Identified exit to Extension 9490 | -4/Factory | Loaded intel: 8 recycling unit locations 9513 | -4/Factory | Fabricated Cld. Nuclear Pulse Thruster? 9561 | -4/Factory | Fabricated Cld. Nuclear Pulse Thruster? 9562 | -4/Factory | Repaired Fusion Bomb Launcher? 9568 | -4/Factory | Watched by a mysterious "MATRIX" hacker. 9610 | -4/Factory | Fabricated Cld. Nuclear Pulse Thruster (x1) 9650 | -4/Factory | Discovered new exit (range 3) 9651 | -4/Factory | Identified exit to Research 9729 | -4/Factory | Entered Upper Caves 9732 | -4/Upper Caves | A Derelict revealed a hidden shortcut to "reach the base" 9743 | -4/Upper Caves | Identified exit to Warlord 9745 | -4/Upper Caves | Entered Warlord 9752 | -4/Warlord | System corruption cleaned by Quarantine Array 9770 | -4/Warlord | Received a Watcher feed algorithm from an ecstatic Tinkerer 9795 | -4/Warlord | Visited the Vortex Lab 9796 | -4/Warlord | Found Prototype Energy Cannon 9796 | -4/Warlord | Identified Vortex Cannon 9808 | -4/Warlord | Found Prototype Special Weapon 9808 | -4/Warlord | Identified RU-N14's Throwing Claymores v3 9814 | -4/Warlord | Found RU-N14's Throwing Claymores v3 9815 | -4/Warlord | Found RU-N14's Throwing Claymores v3 9817 | -4/Warlord | Warlord's base attacked by MAIN.C 9828 | -4/Warlord | Opened Warlord's prototype stash 9834 | -4/Warlord | Found Prototype Device 9834 | -4/Warlord | Identified System Purifier 9839 | -4/Warlord | Found Spectral Analyzer 9865 | -4/Warlord | Learned 4 Research zone layouts 9865 | -4/Warlord | Learned 4 Command zone layouts 9865 | -4/Warlord | Learned Research stockpile data 9866 | -4/Warlord | Learned Factory garrison access intel 9866 | -4/Warlord | Learned Armory garrison access intel 9866 | -4/Warlord | Learned Research recycling unit intel 9866 | -4/Warlord | Learned Research scanalyzer intel 9880 | -4/Warlord | Rebuked by Warlord 10071 | -4/Warlord | Warlord forces counterattacked 10492 | -4/Warlord | Warlord base infiltrated, sounded retreat 10493 | -4/Warlord | Enhanced Grunt warped into view 10493 | -4/Warlord | Enhanced Grunt warped into view 10493 | -4/Warlord | Enhanced Grunt warped into view 10493 | -4/Warlord | Enhanced Demolisher warped into view 10493 | -4/Warlord | Enhanced Demolisher warped into view 10493 | -4/Warlord | Enhanced Demolisher warped into view 10653 | -4/Warlord | Spotted Striker 10730 | -4/Warlord | Lost 10 allies 10766 | -4/Warlord | Spotted Striker 10795 | -4/Warlord | Spotted Striker 10808 | -4/Warlord | Attached CPS modules to LV-01A. 10813 | -4/Warlord | Lost 7 allies 10822 | -4/Warlord | Spotted Striker 10827 | -4/Warlord | Spotted Executioner 10830 | -4/Warlord | Spotted Striker 10836 | -4/Warlord | Found Prototype Launcher 10839 | -4/Warlord | Identified Exp. Neutron Missile Launcher 10847 | -4/Warlord | Found Prototype Device 10847 | -4/Warlord | Identified Exp. Focal Shield 10858 | -4/Warlord | Discovered new exit (range 12) 10859 | -4/Warlord | Identified exit to Proximity Caves 10860 | -4/Warlord | Entered Proximity Caves 10890 | -3/Proximity Caves | Lost 3 allies 10971 | -3/Proximity Caves | Attracted the attention of an 0b10 checkpoint 11002 | -3/Proximity Caves | Discovered exit to Research (range 14) 11012 | -3/Proximity Caves | Entered Research 11012 | -3/Research | Evolved 2 slots: Utility x2 11013 | -3/Research | Identified exit to Armory 11013 | -3/Research | Identified exit to Research 11015 | -3/Research | Identified exit to Testing 11016 | -3/Research | Loaded intel: 23 terminal locations 11017 | -3/Research | Loaded intel: 5 recycling unit locations 11018 | -3/Research | Loaded intel: 6 scanalyzer locations 11023 | -3/Research | Loaded intel: 5 recycling unit locations 11121 | -3/Research | Entered Testing 11131 | -3/Testing | Spotted PG-HXN5MKRUYR 11461 | -3/Testing | Protovariant out of control (PG-YSI56NUSUO) 11586 | -3/Testing | Protovariant out of control (PG-HXN5MKRUYR) 11586 | -3/Testing | Unleashed a protovariant (PG-HXN5MKRUYR) 11623 | -3/Testing | Discovered exit to Research (range 7) 11626 | -3/Testing | Spotted Investigator 11627 | -3/Testing | Entered Research 11627 | -2/Research | Evolved 2 slots: Propulsion x1, Weapon x1 11628 | -2/Research | Identified exit to Access 11629 | -2/Research | Loaded intel: 18 terminal locations 11785 | -2/Research | Identified exit to Quarantine 11994 | -2/Research | Entered Quarantine 12062 | -2/Quarantine | Found Alien Slashing Weapon 12062 | -2/Quarantine | Identified Sigix Broadsword 12076 | -2/Quarantine | Found Alien Artifact 12081 | -2/Quarantine | Found Alien Artifact 12097 | -2/Quarantine | Found Prototype Launcher 12099 | -2/Quarantine | Identified Adv. Micro-nuke Launcher 12104 | -2/Quarantine | Discovered exit to Access (range 14) 12110 | -2/Quarantine | Found Alien Artifact 12110 | -2/Quarantine | Identified Core Reset Matrix 12110 | -2/Quarantine | Identified Hpw. Transdimensional Reconstructor 12110 | -2/Quarantine | Identified Dimensional Node Initializer 12110 | -2/Quarantine | Used Core Reset Matrix 12114 | -2/Quarantine | Detected hypermatrix surge 12114 | -2/Quarantine | Sensed 9 artifacts in vicinity 12114 | -2/Quarantine | Discovered exit to Access (range 9) 12137 | -2/Quarantine | Found Subatomic Replicator 12138 | -2/Quarantine | Used Subatomic Replicator to create Supercharged TR 12194 | -2/Quarantine | Repaired Cld. Nuclear Pulse Thruster? 12206 | -2/Quarantine | Spotted Fortress 12217 | -2/Quarantine | Discovered new exit (range 6) 12217 | -2/Quarantine | Discovered new exit (range 6) 12218 | -2/Quarantine | Identified exit to Protoforge 12354 | -2/Quarantine | Entered Protoforge 12355 | -2/Protoforge | Sensed 2 artifacts in vicinity 12397 | -2/Protoforge | Discovered exit to Access (range 16) 12412 | -2/Protoforge | Spotted Hotshot 12413 | -2/Protoforge | Superfortress began startup sequence 12467 | -2/Protoforge | Spotted EXE-6 12467 | -2/Protoforge | Spotted EXE-6 12495 | -2/Protoforge | Spotted SKR-2 12498 | -2/Protoforge | UFD initiated attack on Protoforge (Readiness: High) 12498 | -2/Protoforge | Loaded intel: 3 recycling unit locations 12529 | -2/Protoforge | Initialized slip node 12534 | -2/Protoforge | Optimus greeted in Protoforge 12544 | -2/Protoforge | Warped through subspace to slip node 12545 | -2/Protoforge | Optimus attacked Superfortress 12549 | -2/Protoforge | Spotted Executioner 12551 | -2/Protoforge | Spotted Hotshot 12552 | -2/Protoforge | Spotted SKR-2 12552 | -2/Protoforge | Spotted SKR-2 12555 | -2/Protoforge | Spotted Striker 12557 | -2/Protoforge | Spotted Immortal 12561 | -2/Protoforge | Spotted Decapitator 12581 | -2/Protoforge | Found Prototype Storage 12581 | -2/Protoforge | Identified Cep. Chromion Battery 12584 | -2/Protoforge | Found Prototype Power Core 12584 | -2/Protoforge | Identified Cep. Zero-point Core 12587 | -2/Protoforge | Found Cep. Zero-point Core 12592 | -2/Protoforge | Found Cep. Zero-point Core 12594 | -2/Protoforge | Found Prototype Storage 12594 | -2/Protoforge | Identified Cep. NT7 Matterbank 12610 | -2/Protoforge | Forge Plexus network access discovered 12618 | -2/Protoforge | Spotted EXE-6 12618 | -2/Protoforge | Spotted EXE-6 12627 | -2/Protoforge | Found Exp. Kinecellerator 12630 | -2/Protoforge | Spotted AP7-3 12631 | -2/Protoforge | Spotted AP7-3 12634 | -2/Protoforge | Spotted Decapitator 12635 | -2/Protoforge | Spotted Decapitator 12636 | -2/Protoforge | Met 7R-MNS 12666 | -2/Protoforge | Lost 26 allies 12674 | -2/Protoforge | Spotted Hotshot 12676 | -2/Protoforge | Spotted Immortal 12679 | -2/Protoforge | Spotted Immortal 12679 | -2/Protoforge | Spotted Immortal 12705 | -2/Protoforge | UFD reported confirmed Drillbomb installation 12792 | -2/Protoforge | Spotted Striker 12793 | -2/Protoforge | Spotted Executioner 12812 | -2/Protoforge | Spotted Executioner 12813 | -2/Protoforge | Spotted Striker 12855 | -2/Protoforge | Lost 3 allies 12947 | -2/Protoforge | Build established: Hacker-Scout 12990 | -2/Protoforge | Spotted Executioner 13042 | -2/Protoforge | Spotted Immortal 13045 | -2/Protoforge | Spotted Executioner 13045 | -2/Protoforge | Spotted Immortal 13056 | -2/Protoforge | Spotted Executioner 13060 | -2/Protoforge | Spotted Executioner 13068 | -2/Protoforge | UFD reported confirmed Drillbomb installation 13201 | -2/Protoforge | Spotted Hotshot 13211 | -2/Protoforge | Destroyed Hotshot 13211 | -2/Protoforge | Destroyed Hotshot 13261 | -2/Protoforge | Spotted Decapitator 13261 | -2/Protoforge | Spotted Decapitator 13261 | -2/Protoforge | Spotted Decapitator 13261 | -2/Protoforge | Spotted Decapitator 13309 | -2/Protoforge | Spotted Decapitator 13309 | -2/Protoforge | Spotted Decapitator 13373 | -2/Protoforge | Found Cep. Lightning Penetrator 13378 | -2/Protoforge | Found Exp. Jetlance 13481 | -2/Protoforge | Spotted Hotshot 13497 | -2/Protoforge | Destroyed Hotshot 13510 | -2/Protoforge | Destroyed Hotshot 13527 | -2/Protoforge | Found Crosscalibrator 13528 | -2/Protoforge | Spotted Immortal 13528 | -2/Protoforge | Spotted Immortal 13552 | -2/Protoforge | Destroyed Immortal 13564 | -2/Protoforge | Destroyed Immortal 13568 | -2/Protoforge | Found Corrupted Prototype Device 13605 | -2/Protoforge | UFD reported confirmed Drillbomb installation 13611 | -2/Protoforge | Spotted Hotshot 13624 | -2/Protoforge | Spotted Decapitator 13624 | -2/Protoforge | Spotted Decapitator 13624 | -2/Protoforge | Spotted Decapitator 13624 | -2/Protoforge | Spotted Decapitator 13629 | -2/Protoforge | Destroyed Decapitator 13631 | -2/Protoforge | Destroyed Decapitator 13670 | -2/Protoforge | Spotted V318-d 13692 | -2/Protoforge | Spotted Executioner 13816 | -2/Protoforge | Spotted Executioner 13824 | -2/Protoforge | Spotted Striker 13824 | -2/Protoforge | Spotted Striker 13825 | -2/Protoforge | Spotted Executioner 13827 | -2/Protoforge | Spotted Executioner 13834 | -2/Protoforge | Spotted Executioner 13847 | -2/Protoforge | Spotted Executioner 13859 | -2/Protoforge | P-80 Master assimilated allied 02FAV-D 13869 | -2/Protoforge | Lost 4 allies 13897 | -2/Protoforge | Spotted Striker 13900 | -2/Protoforge | Spotted Striker 13901 | -2/Protoforge | Attached CPS modules to V318-d. 13928 | -2/Protoforge | UFD reported confirmed Drillbomb installation 13929 | -2/Protoforge | Lost 3 allies 13951 | -2/Protoforge | Destroyed V318-d 13955 | -2/Protoforge | Found Cep. Zero-point Core 13957 | -2/Protoforge | Found Prototype Device 13957 | -2/Protoforge | Identified Exp. Shock Absorption System 13962 | -2/Protoforge | Found Prototype Device 13962 | -2/Protoforge | Identified Cep. Antimissile System (x2) 13970 | -2/Protoforge | Found Cep. Gyrokinetic System 13971 | -2/Protoforge | Spotted Hotshot 14023 | -2/Protoforge | Spotted Executioner 14048 | -2/Protoforge | Spotted Executioner 14067 | -2/Protoforge | Lost 3 allies 14089 | -2/Protoforge | Found Faulty Cep. Combat Aerolev Unit 14096 | -2/Protoforge | Found Cep. Combat Aerolev Unit 14101 | -2/Protoforge | Found Cep. Gyrokinetic System 14126 | -2/Protoforge | Found Cep. Antigrav Storage Unit 14128 | -2/Protoforge | Found Cep. Matter Streamer 14132 | -2/Protoforge | Found Cep. Chromion Battery 14139 | -2/Protoforge | UFD reported confirmed Drillbomb installation 14152 | -2/Protoforge | Found Faulty Cep. Gyrokinetic System 14154 | -2/Protoforge | UFD reported confirmed Drillbomb installation 14154 | -2/Protoforge | Found Cep. Gyrokinetic System 14215 | -2/Protoforge | Spotted V503-a 14234 | -2/Protoforge | Destroyed Decapitator 14234 | -2/Protoforge | Destroyed Decapitator 14236 | -2/Protoforge | Destroyed Decapitator 14236 | -2/Protoforge | Destroyed Decapitator 14295 | -2/Protoforge | Spotted V075-a 14303 | -2/Protoforge | Spotted V097-k 14396 | -2/Protoforge | Found Prototype Protection 14396 | -2/Protoforge | Identified Med. Regenerative Plating 14403 | -2/Protoforge | Found Cep. Combat Aerolev Unit 14404 | -2/Protoforge | Found Cep. Antimissile System 14409 | -2/Protoforge | Found Prototype Processor 14431 | -2/Protoforge | Spotted V203-d 14466 | -2/Protoforge | Spotted V043-x 14546 | -2/Protoforge | Found Cep. Combat Aerolev Unit 14548 | -2/Protoforge | Found Prototype Device 14548 | -2/Protoforge | Identified Thermal Barrier 14566 | -2/Protoforge | Lost 3 allies 14616 | -2/Protoforge | Attached CPS modules to V203-d. 14643 | -2/Protoforge | Spotted Executioner 14652 | -2/Protoforge | Spotted Striker 14653 | -2/Protoforge | Spotted Executioner 14681 | -2/Protoforge | Build established: Scavenger-Mutant 14697 | -2/Protoforge | Destroyed Striker 14707 | -2/Protoforge | Spotted Striker 14711 | -2/Protoforge | Destroyed Executioner 14734 | -2/Protoforge | Spotted Executioner 14734 | -2/Protoforge | Spotted Executioner 14741 | -2/Protoforge | Spotted Striker 14785 | -2/Protoforge | Lost 3 allies 14817 | -2/Protoforge | Spotted Striker 14845 | -2/Protoforge | Spotted Striker 14889 | -2/Protoforge | Spotted Striker 14948 | -2/Protoforge | Spotted Striker 14949 | -2/Protoforge | Found Prototype Device 14949 | -2/Protoforge | Identified Adv. Kinecellerator 14953 | -2/Protoforge | Spotted Striker 14954 | -2/Protoforge | Spotted Striker 14988 | -2/Protoforge | Lost 3 allies 15014 | -2/Protoforge | UFD reported confirmed Drillbomb installation 15081 | -2/Protoforge | Spotted Immortal 15081 | -2/Protoforge | Spotted Immortal 15084 | -2/Protoforge | UFD reported confirmed Drillbomb installation 15137 | -2/Protoforge | Destroyed Decapitator 15155 | -2/Protoforge | Rewired Immortal 15184 | -2/Protoforge | Destroyed Immortal 15336 | -2/Protoforge | UFD reported confirmed Drillbomb installation 15361 | -2/Protoforge | Spotted V482-k 15399 | -2/Protoforge | Destroyed V482-k 15403 | -2/Protoforge | Identified Exp. Targeting Computer 15405 | -2/Protoforge | Found Corrupted Prototype Device 15414 | -2/Protoforge | Found Prototype Device 15414 | -2/Protoforge | Identified Exp. Active Sensor Suite 15426 | -2/Protoforge | Found Prototype Processor 15426 | -2/Protoforge | Identified Exp. Target Analyzer 15485 | -2/Protoforge | Found Cep. Helical Railcannon 15487 | -2/Protoforge | Found Cep. Heavy Railcannon 15494 | -2/Protoforge | Found Faulty Cep. Plasma Driver 15499 | -2/Protoforge | Found Faulty Cep. Plasma Driver 15555 | -2/Protoforge | Additional patrols dispatched to research labs 15558 | -2/Protoforge | Found Transdimensional Reconstructor 15564 | -2/Protoforge | Found Cep. Navigation Harness 15774 | -2/Protoforge | Build established: Scavenger-Gunner 15818 | -2/Protoforge | System corruption reached 10% 15832 | -2/Protoforge | Found Cep. Core Analysis Suite 15834 | -2/Protoforge | Found Cep. Core Analysis Suite 15838 | -2/Protoforge | Found Cep. Thermoelectric Network 15840 | -2/Protoforge | Found Cep. Impact Drone Bay 15845 | -2/Protoforge | Found Cep. Cloak Mesh 15846 | -2/Protoforge | Found Faulty Cep. Cloak Mesh 15905 | -2/Protoforge | Spotted Decapitator 15905 | -2/Protoforge | Spotted V260-c 15941 | -2/Protoforge | Found Prototype Device 15941 | -2/Protoforge | Identified Cep. Weapon Articulator 15946 | -2/Protoforge | Found Faulty Exp. Kinecellerator 15947 | -2/Protoforge | Found Cep. Networked Targeting System 15956 | -2/Protoforge | Found Cep. Networked Targeting System 15975 | -2/Protoforge | Spotted V157-l 15979 | -2/Protoforge | Found Prototype Device 15979 | -2/Protoforge | Identified Cep. Beam Splitter 15982 | -2/Protoforge | Found Prototype Device 15982 | -2/Protoforge | Identified Cep. Energy Mantle 15987 | -2/Protoforge | Found Cep. RG22 Armor 15990 | -2/Protoforge | Found Exp. Force Field 15993 | -2/Protoforge | Found Faulty Cep. Phase Shift Module 16075 | -2/Protoforge | Found Faulty Cep. RG22 Armor 16080 | -2/Protoforge | Found Faulty Cep. Beam Splitter 16083 | -2/Protoforge | Found Faulty Cep. Phase Shift Module 16211 | -2/Protoforge | Found Prototype Launcher 16212 | -2/Protoforge | Identified Cep. Rapid Grenade Launcher 16342 | -2/Protoforge | Spotted Executioner 16349 | -2/Protoforge | Spotted Striker 16366 | -2/Protoforge | Destroyed Striker 16441 | -2/Protoforge | Spotted AP7-3 16464 | -2/Protoforge | Destroyed Executioner 16497 | -2/Protoforge | Spotted Decapitator 16505 | -2/Protoforge | Found Exp. Kinecellerator 16554 | -2/Protoforge | Found Cep. NT7 Matterbank 16557 | -2/Protoforge | Found Prototype Storage 16557 | -2/Protoforge | Identified Cep. Chromion Battery 16609 | -2/Protoforge | Spotted AP7-3 16625 | -2/Protoforge | Build established: Tank 16687 | -2/Protoforge | Spotted Executioner 16958 | -2/Protoforge | Spotted V920-q 16968 | -2/Protoforge | Allies destroyed V920-q 16972 | -2/Protoforge | Found Faulty Cep. Zero-point Core 16985 | -2/Protoforge | Found Faulty Cep. Zero-point Core 17007 | -2/Protoforge | Build established: Gunner 17044 | -2/Protoforge | Found Cep. Zero-point Core 17335 | -2/Protoforge | Spotted Executioner 17447 | -2/Protoforge | Found Exp. System Purifier 17574 | -2/Protoforge | Spotted Striker 17619 | -2/Protoforge | Spotted Executioner 17620 | -2/Protoforge | Spotted Executioner 17656 | -2/Protoforge | Spotted Striker 19548 | -2/Protoforge | Found UFD Drillbomb 19549 | -2/Protoforge | Spotted Striker 19557 | -2/Protoforge | Spotted Executioner 19735 | -2/Protoforge | Found Cep. Antigrav Storage Unit 19745 | -2/Protoforge | Found Faulty Cep. Matter Streamer 19783 | -2/Protoforge | Installed UFD Drillbomb at designated target 19783 | -2/Protoforge | UFD reported confirmed Drillbomb installation 19784 | -2/Protoforge | UFD began Drillbomb countdown 19823 | -2/Protoforge | Entered Access 19823 | -1/Access | Accompanied by 1 ally 19823 | -1/Access | Evolved 2 slots: Power x1, Weapon x1 19889 | -1/Access | Spotted Executioner 20000 | -1/Access | Unchained authorized (QV-33N) 20073 | -1/Access | First assault squad dispatched 20117 | -1/Access | Discovered new exit (range 11) 20196 | -1/Access | High security lockdown imminent 20243 | -1/Access | Destroyed 15 combat bots 20245 | -1/Access | System corruption reached 10% 20276 | -1/Access | High security lockdown engaged 20353 | -1/Access | Spotted B-99 Colossus 20361 | -1/Access | Spotted B-99 Colossus 20369 | -1/Access | Spotted B-99 Colossus 20381 | -1/Access | Discovered new exit (range 5) 20383 | -1/Access | Entered Command 20405 | -1/Command | Spotted Striker 20406 | -1/Command | Spotted Striker 20407 | -1/Command | Destroyed Striker 20409 | -1/Command | Destroyed Striker 20441 | -1/Command | Spotted M Guard 20441 | -1/Command | Spotted M Guard 20441 | -1/Command | Spotted Combat Programmer 20441 | -1/Command | Spotted Combat Programmer 20452 | -1/Command | Destroyed M Guard 20487 | -1/Command | System corruption reached 30% 20489 | -1/Command | Destroyed M Guard 20493 | -1/Command | Destroyed Combat Programmer 20495 | -1/Command | Destroyed Combat Programmer 20495 | -1/Command | All MAIN.C guards destroyed 20579 | -1/Command | Met MAIN.C 20582 | -1/Command | 0b10 Conduit disabled 20623 | -1/Command | Destroyed MAIN.C Shell 20626 | -1/Command | MAIN.C activated Command garrisons 20652 | -1/Command | Core integrity fell below 50% 20699 | -1/Command | Lost 3 allies 20708 | -1/Command | Lost 3 parts (2u1w) 20728 | -1/Command | Allies destroyed MAIN.C 20732 | -1/Command | Spotted Executioner 20732 | -1/Command | Discovered new exit (range 33) 20732 | -1/Command | Discovered new exit (range 111) 20732 | -1/Command | Extracted map data and part IDs from MAIN.C's data core 20735 | -1/Command | Spotted Executioner 20894 | -1/Command | Spotted Striker 20961 | -1/Command | Build established: Mutant 21440 | -1/Command | Found Exp. System Purifier 21705 | -1/Command | Phase Generator disabled 22230 | -1/Command | Build established: Scavenger-Mutant 23901 | -1/Command | Found Zero-point Reactor 23903 | -1/Command | Found Zero-point Reactor 23906 | -1/Command | Found Exp. Weapon Cycler 23910 | -1/Command | Found Imp. Potential Cannon 24205 | -1/Command | Build established: Scavenger-Tank 24699 | -1/Command | Build established: Scavenger-Mutant 25177 | -1/Command | Build established: Scavenger-Tank 26093 | -1/Command | Build established: Scavenger-Mutant 26729 | -1/Command | Build established: Scavenger-Tank 26750 | -1/Command | Found Exp. Targeting Computer 28775 | -1/Command | Build established: Gunner 28992 | -1/Command | Found Exp. Core Analyzer 29507 | -1/Command | Build established: Tank 30041 | -1/Command | Warped through subspace to slip node 30041 | -1/Command | Discovered new exit (range 4) 30047 | -1/Command | Entered Access_0 30048 | -1/Access_0 | Architect warped through subspace 30048 | -1/Access_0 | Sensed 3 artifacts in vicinity 30062 | -1/Access_0 | Destroyed A8 30128 | -1/Access_0 | Architect warped through subspace 30182 | -1/Access_0 | Architect warped through subspace 30210 | -1/Access_0 | Architect warped through subspace 30250 | -1/Access_0 | Architect warped through subspace 30267 | -1/Access_0 | Core integrity fell below 20% 30276 | -1/Access_0 | Architect warped through subspace 30300 | -1/Access_0 | Self-destructed Last Messages --------------- 30286_ Acquired Energy Well. 30287_ Activated siege mode. 30287_ Lyr. Heavy Armor Plating destroyed. 30288_ Dropped Energy Well. 30289_ Extracted 350 energy. 30291_ Penetrated by Quantum Shear. 30291_ Quantum Shear penetrates Wall. 30291_ Acquired Energy Well. 30291_ Imp. Utility Shielding destroyed. 30292_ Dropped Cep. Chromion Battery. 30292_ Hvy. Hardcell Cannon destroyed. 30293_ Extracted 613 energy. 30294_ Acquired Cep. Chromion Battery. 30295_ Dropped Energy Well. 30296_ Extracted 246 energy. 30296_ Penetrated by Quantum Shear. 30296_ Enhanced Grunt destroyed. 30296_ Destroyed Adv. Heat Sink. 30298_ Enhanced Grunt destroyed. 30298_ Quantum Shear penetrates Wall. Map ----- +----------------------------------------------------+ | ?????????????????????????????????????????????????? | | ?????????????????????????????????????????????????? | | ?????????????????????????????????????????????????? | | ?????????????????????????????????????????????????? | | ?????????????????????????????????????????????????? | | ????????????????????????#####???????????##???????? | | ????????????????????????# ??????????? #???????? | | ???????????????????????## #?????????? ##??????? | | ???????????????????????# #?????????? #??????? | | ?????????????????????### #????????? #???#### | | ????????????????????## ########## #??# ? | | ???????????????????## #?? ?? | | ???????????????????# #?# ??? | | ????????????? ; #######"### #?" #### | | ??????????????? ??? ;?????# #??##### | | ???????????????????? ?????# #????## | | ?????????????????????" ???### ###??# | | ?????????????????????? ????# # # #??# | | ??????????????????????" ??? ?## ## | | ??????????????????????# ;?? ## ## | | ??????????????????????## #?; # # | | ??????????????????????#;; #; g ## " | | ??????????????????????? ; #; ## "" | | ??????????????????????##; ; ### " | | ????????????????????### ## " | | ????????????????????#; @ ; ; "" | | ????????????????????####;; ;##; # " " | | ???????????????????????#;; ;; # #" | | ???????????????????????## "### " | | ????????????????????????# ### " | | ????????????????????????##; ; ; ### | | ?????????????????????????#;;; ; ## | | ?????????????????????????##; ## | | ??????????????????????????? #### | | ??????????????????????????? ##??# ## | | ??????????????????????????? #???# #? | | ??????????????????????????? #???##### ? | | ??????????????????????????? # ????????## | | ??????????????????????????? # ????????????# | | ??????????????????????????? ? ????????????# | | ??????????????????????????????? ?????????????# ## | | ?????????????????????????????????????????????# #? | | ?????????????????????????????????????????????# #? | | ?????????????????????????????????????????????# #? | | ?????????????????????????????????????????????# #? | | ?????????????????????????????????????????????? ?? | | ?????????????????????????????????????????????? ?? | | ?????????????????????????????????????????????????? | | ?????????????????????????????????????????????????? | | ?????????????????????????????????????????????????? | +----------------------------------------------------+ Best States ------------- Heat Dissipation 90 Coolant Potential 120 Energy Generation 124 Energy Capacity 1260 Matter Stores 300 Matter Capacity 300 Sight Range 24 Robot Scan Range 20 Terrain Scan Range 16 Terrain Scan Density 210 ECM Strength 1 Jamming Range 16 Cloak Strength 9 Power Amplification 30 Additional Mass Support 9 Armor Coverage 1200 Resistance: KI 30 Resistance: TH 50 Resistance: EM 20 Propulsion Shielding 66 Utility Shielding 66 Weapon Shielding 90 Point Defense Rating 480 Weapon Cycling 30 Phase Shifting 25 Evasion (%) 96 Targeting Accuracy 20 Target Analysis 10 Core Analysis 11 Recoil Reduction 7 Energy Filtering 30 Kinecelleration 66 Offensive Hacking 37 Defensive Hacking 14 Authchip Count 5 Item Schematics ----------------- None Robot Schematics ------------------ C-57 Dissector | -2/Protoforge | Archive X-87 Electro | -2/Protoforge | Archive Fabricated ------------ Cld. Nuclear Pulse Thruster | x1 | -4/Factory | Authchip Cld. Nuclear Pulse Thruster | x1 | -4/Factory | Authchip Cld. Nuclear Pulse Thruster | x1 | -4/Factory | Authchip Repaired ---------- Fusion Bomb Launcher | 17% | -4/Factory Cld. Nuclear Pulse Thruster | 38% | -2/Quarantine Studied --------- None Alien Tech Used ----------------- Integrated Reactor Sigix Broadsword Core Reset Matrix Subatomic Replicator Dimensional Node Initializer Supercharged TR Transdimensional Reconstructor Achievements -------------- None Challenges ------------ None Game ------ Seed SupersonicIntegrityHammer Manual? 0 Play Time 05:29:34 Cumulative 384.9 hours Start 2026.02.19 @ 03:56:27 End 2026.02.21 @ 10:44:48 Sessions 13 Manual Loads 0 Difficulty Rogue Special Mode None Game No. 148 Rogue 147 Adventurer 1 Explorer 0 Win Type - Total 15 Types 6/2/2/0/1/0/2/1/0/1 Lore% 62 Gallery% 80 Achievement% 70 Wizard Run 0 Options --------- Layout 0 ASCII 0 Keyboard 0 Movement Arrows Keybinds 0 Fullscreen 2 Font 24/Smallcaps Map View 76x50 Zoom Use 0% Tactical HUD 1 Map Filters NONE Filters NONE Steam 1 RUN: 788e60db-f83b-4365-b9c2-1597df13b570